{"text_format":"1","workbook":"xlsx","n_sheets":8,"sheets":["計算器 Calculator","單方精油 Essential Oil Singles","複方精油 Essential Oil Blends","精油套裝 Essential Oil Kits","健康產品 Wellness","個人護理系列 Spa","護髮產品 Salon Essentials","家居生活產品及配件 Living & Accessories"],"not_rendered":{"charts":0,"images":4,"macros":1,"external_links":0,"defined_names":1,"comments":0,"pivot_tables":0},"unopened":[],"bounds":{"document_bytes":16777216,"sheet_cells":100000,"rows_first":2000,"rows_last":500,"rows_between":2000,"halvings":0,"cell_chars":16384,"cell_head_chars":4096},"cells_cut":0,"cells_raw":0,"read":"whole","date_system":"1900"}

{"sheet":"計算器 Calculator","index":0,"n_rows":27,"n_cols":11,"rows_kept":27,"cut":false,"hidden":false,"merged":[[17,3,17,4],[18,3,18,4],[19,3,19,4],[20,3,20,4],[22,0,22,3],[12,3,12,4],[13,3,13,4],[14,3,14,4],[15,3,15,4],[16,3,16,4],[1,5,1,6],[0,0,0,8],[4,3,4,4],[6,3,6,4],[5,3,5,4],[1,2,1,4],[7,3,7,4],[8,3,8,4],[9,3,9,4],[10,3,10,4],[11,3,11,4]]}
["香港產品 - 價格 及 PV值計算器 (2022年5月份)\nHK OTG Product - Price & PV calculator (May, 2022)"]
[null,"會員號碼:\nWA#",null,null,null,"此訂單編制日期：\nDate of list printed",null,{"$f":"TODAY()","v":"2022-04-29"}]
[]
[]
["選項 Item","產品編號 Product SKU","購買數量 Quantity","產品名稱 Product Name",null,"批發價(港幣) Wholesales Price (HKD)","PV值 \nProduct Value","總價格(港幣) Sub-total Price (HKD)","總PV值 \nSub-total Product Value"]
[]
[1,null,null,{"$f":"IF($B7=\"\",\"\",IFERROR(VLOOKUP($B7,'單方精油 Essential Oil Singles'!$A:$D,2,FALSE),IFERROR(VLOOKUP($B7,'單方精油 Essential Oil Singles'!$F:$H,2,FALSE),IFERROR(VLOOKUP($B7,'複方精油 Essential Oil Blends'!$A:$D,2,FALSE),IFERROR(VLOOKUP($B7,'複方精油 Essential Oil Blends'!$F:$H,2,FALSE),IFERROR(VLOOKUP($B7,'精油套裝 Essential Oil Kits'!$A:$D,2,FALSE),IFERROR(VLOOKUP($B7,'精油套裝 Essential Oil Kits'!$F:$H,2,FALSE),IFERROR(VLOOKUP($B7,'健康產品 Wellness'!$A:$D,2,FALSE),IFERROR(VLOOKUP($B7,'健康產品 Wellness'!$F:$H,2,FALSE),IFERROR(VLOOKUP($B7,'個人護理系列 Spa'!$A:$D,2,FALSE),IFERROR(VLOOKUP($B7,'個人護理系列 Spa'!$F:$H,2,FALSE),IFERROR(VLOOKUP($B7,'護髮產品 Salon Essentials'!$A:$D,2,FALSE),IFERROR(VLOOKUP($B7,'護髮產品 Salon Essentials'!$F:$H,2,FALSE),IFERROR(VLOOKUP($B7,'家居生活產品及配件 Living & Accessories'!$A:$D,2,FALSE),IFERROR(VLOOKUP($B7,'家居生活產品及配件 Living & Accessories'!$F:$H,2,FALSE),\"沒有此產品編號 / No Such Product SKU\")))))))))))))))","v":""},{"$f":"IF($B8=\"\",\"\",IFERROR(VLOOKUP($B8,'單方精油 Essential Oil Singles'!$A:$D,2,FALSE),IFERROR(VLOOKUP($B8,'單方精油 Essential Oil Singles'!$F:$H,2,FALSE),IFERROR(VLOOKUP($B8,'複方精油 Essential Oil Blends'!$A:$D,2,FALSE),IFERROR(VLOOKUP($B8,'複方精油 Essential Oil Blends'!$F:$H,2,FALSE),IFERROR(VLOOKUP($B8,'精油套裝 Essential Oil Kits'!$A:$D,2,FALSE),IFERROR(VLOOKUP($B8,'精油套裝 Essential Oil Kits'!$F:$H,2,FALSE),IFERROR(VLOOKUP($B8,'健康產品 Wellness'!$A:$D,2,FALSE),IFERROR(VLOOKUP($B8,'健康產品 Wellness'!$F:$H,2,FALSE),IFERROR(VLOOKUP($B8,'個人護理系列 Spa'!$A:$D,2,FALSE),IFERROR(VLOOKUP($B8,'個人護理系列 Spa'!$F:$H,2,FALSE),IFERROR(VLOOKUP($B8,'護髮產品 Salon Essentials'!$A:$D,2,FALSE),IFERROR(VLOOKUP($B8,'護髮產品 Salon Essentials'!$F:$H,2,FALSE),IFERROR(VLOOKUP($B8,'家居生活產品及配件 Living & Accessories'!$A:$D,2,FALSE),IFERROR(VLOOKUP($B8,'家居生活產品及配件 Living & Accessories'!$F:$H,2,FALSE),\"沒有此產品編號 / No Such Product SKU\")))))))))))))))","v":""},{"$f":"IF($B7=\"\",\"\",IFERROR(VLOOKUP($B7,'單方精油 Essential Oil Singles'!$A:$D,3,FALSE),IFERROR(VLOOKUP($B7,'單方精油 Essential Oil Singles'!$F:$H,3,FALSE),IFERROR(VLOOKUP($B7,'複方精油 Essential Oil Blends'!$A:$D,3,FALSE),IFERROR(VLOOKUP($B7,'複方精油 Essential Oil Blends'!$F:$H,3,FALSE),IFERROR(VLOOKUP($B7,'精油套裝 Essential Oil Kits'!$A:$D,3,FALSE),IFERROR(VLOOKUP($B7,'精油套裝 Essential Oil Kits'!$F:$H,3,FALSE),IFERROR(VLOOKUP($B7,'健康產品 Wellness'!$A:$D,3,FALSE),IFERROR(VLOOKUP($B7,'健康產品 Wellness'!$F:$H,3,FALSE),IFERROR(VLOOKUP($B7,'個人護理系列 Spa'!$A:$D,3,FALSE),IFERROR(VLOOKUP($B7,'個人護理系列 Spa'!$F:$H,3,FALSE),IFERROR(VLOOKUP($B7,'護髮產品 Salon Essentials'!$A:$D,3,FALSE),IFERROR(VLOOKUP($B7,'護髮產品 Salon Essentials'!$F:$H,3,FALSE),IFERROR(VLOOKUP($B7,'家居生活產品及配件 Living & Accessories'!$A:$D,3,FALSE),IFERROR(VLOOKUP($B7,'家居生活產品及配件 Living & Accessories'!$F:$H,3,FALSE),\"\")))))))))))))))","v":""},{"$f":"IF($B7=\"\",\"\",IFERROR(VLOOKUP($B7,'單方精油 Essential Oil Singles'!$A:$D,4,FALSE),IFERROR(VLOOKUP($B7,'單方精油 Essential Oil Singles'!$F:$I,4,FALSE),IFERROR(VLOOKUP($B7,'複方精油 Essential Oil Blends'!$A:$D,4,FALSE),IFERROR(VLOOKUP($B7,'複方精油 Essential Oil Blends'!$F:$I,4,FALSE),IFERROR(VLOOKUP($B7,'精油套裝 Essential Oil Kits'!$A:$D,4,FALSE),IFERROR(VLOOKUP($B7,'精油套裝 Essential Oil Kits'!$F:$I,4,FALSE),IFERROR(VLOOKUP($B7,'健康產品 Wellness'!$A:$D,4,FALSE),IFERROR(VLOOKUP($B7,'健康產品 Wellness'!$F:$I,4,FALSE),IFERROR(VLOOKUP($B7,'個人護理系列 Spa'!$A:$D,4,FALSE),IFERROR(VLOOKUP($B7,'個人護理系列 Spa'!$F:$I,4,FALSE),IFERROR(VLOOKUP($B7,'護髮產品 Salon Essentials'!$A:$D,4,FALSE),IFERROR(VLOOKUP($B7,'護髮產品 Salon Essentials'!$F:$I,4,FALSE),IFERROR(VLOOKUP($B7,'家居生活產品及配件 Living & Accessories'!$A:$D,4,FALSE),IFERROR(VLOOKUP($B7,'家居生活產品及配件 Living & Accessories'!$F:$I,4,FALSE),\"\")))))))))))))))","v":""},{"$f":"IF(C7=\"\",\"\",C7*F7)","v":""},{"$f":"IF(C7=\"\",\"\",C7*G7)","v":""}]
[2,null,null,{"$f":"IF($B8=\"\",\"\",IFERROR(VLOOKUP($B8,'單方精油 Essential Oil Singles'!$A:$D,2,FALSE),IFERROR(VLOOKUP($B8,'單方精油 Essential Oil Singles'!$F:$H,2,FALSE),IFERROR(VLOOKUP($B8,'複方精油 Essential Oil Blends'!$A:$D,2,FALSE),IFERROR(VLOOKUP($B8,'複方精油 Essential Oil Blends'!$F:$H,2,FALSE),IFERROR(VLOOKUP($B8,'精油套裝 Essential Oil Kits'!$A:$D,2,FALSE),IFERROR(VLOOKUP($B8,'精油套裝 Essential Oil Kits'!$F:$H,2,FALSE),IFERROR(VLOOKUP($B8,'健康產品 Wellness'!$A:$D,2,FALSE),IFERROR(VLOOKUP($B8,'健康產品 Wellness'!$F:$H,2,FALSE),IFERROR(VLOOKUP($B8,'個人護理系列 Spa'!$A:$D,2,FALSE),IFERROR(VLOOKUP($B8,'個人護理系列 Spa'!$F:$H,2,FALSE),IFERROR(VLOOKUP($B8,'護髮產品 Salon Essentials'!$A:$D,2,FALSE),IFERROR(VLOOKUP($B8,'護髮產品 Salon Essentials'!$F:$H,2,FALSE),IFERROR(VLOOKUP($B8,'家居生活產品及配件 Living & Accessories'!$A:$D,2,FALSE),IFERROR(VLOOKUP($B8,'家居生活產品及配件 Living & Accessories'!$F:$H,2,FALSE),\"沒有此產品編號 / No Such Product SKU\")))))))))))))))","v":""},{"$f":"IF($B9=\"\",\"\",IFERROR(VLOOKUP($B9,'單方精油 Essential Oil Singles'!$A:$D,2,FALSE),IFERROR(VLOOKUP($B9,'單方精油 Essential Oil Singles'!$F:$H,2,FALSE),IFERROR(VLOOKUP($B9,'複方精油 Essential Oil Blends'!$A:$D,2,FALSE),IFERROR(VLOOKUP($B9,'複方精油 Essential Oil Blends'!$F:$H,2,FALSE),IFERROR(VLOOKUP($B9,'精油套裝 Essential Oil Kits'!$A:$D,2,FALSE),IFERROR(VLOOKUP($B9,'精油套裝 Essential Oil Kits'!$F:$H,2,FALSE),IFERROR(VLOOKUP($B9,'健康產品 Wellness'!$A:$D,2,FALSE),IFERROR(VLOOKUP($B9,'健康產品 Wellness'!$F:$H,2,FALSE),IFERROR(VLOOKUP($B9,'個人護理系列 Spa'!$A:$D,2,FALSE),IFERROR(VLOOKUP($B9,'個人護理系列 Spa'!$F:$H,2,FALSE),IFERROR(VLOOKUP($B9,'護髮產品 Salon Essentials'!$A:$D,2,FALSE),IFERROR(VLOOKUP($B9,'護髮產品 Salon Essentials'!$F:$H,2,FALSE),IFERROR(VLOOKUP($B9,'家居生活產品及配件 Living & Accessories'!$A:$D,2,FALSE),IFERROR(VLOOKUP($B9,'家居生活產品及配件 Living & Accessories'!$F:$H,2,FALSE),\"沒有此產品編號 / No Such Product SKU\")))))))))))))))","v":""},{"$f":"IF($B8=\"\",\"\",IFERROR(VLOOKUP($B8,'單方精油 Essential Oil Singles'!$A:$D,3,FALSE),IFERROR(VLOOKUP($B8,'單方精油 Essential Oil Singles'!$F:$H,3,FALSE),IFERROR(VLOOKUP($B8,'複方精油 Essential Oil Blends'!$A:$D,3,FALSE),IFERROR(VLOOKUP($B8,'複方精油 Essential Oil Blends'!$F:$H,3,FALSE),IFERROR(VLOOKUP($B8,'精油套裝 Essential Oil Kits'!$A:$D,3,FALSE),IFERROR(VLOOKUP($B8,'精油套裝 Essential Oil Kits'!$F:$H,3,FALSE),IFERROR(VLOOKUP($B8,'健康產品 Wellness'!$A:$D,3,FALSE),IFERROR(VLOOKUP($B8,'健康產品 Wellness'!$F:$H,3,FALSE),IFERROR(VLOOKUP($B8,'個人護理系列 Spa'!$A:$D,3,FALSE),IFERROR(VLOOKUP($B8,'個人護理系列 Spa'!$F:$H,3,FALSE),IFERROR(VLOOKUP($B8,'護髮產品 Salon Essentials'!$A:$D,3,FALSE),IFERROR(VLOOKUP($B8,'護髮產品 Salon Essentials'!$F:$H,3,FALSE),IFERROR(VLOOKUP($B8,'家居生活產品及配件 Living & Accessories'!$A:$D,3,FALSE),IFERROR(VLOOKUP($B8,'家居生活產品及配件 Living & Accessories'!$F:$H,3,FALSE),\"\")))))))))))))))","v":""},{"$f":"IF($B8=\"\",\"\",IFERROR(VLOOKUP($B8,'單方精油 Essential Oil Singles'!$A:$D,4,FALSE),IFERROR(VLOOKUP($B8,'單方精油 Essential Oil Singles'!$F:$I,4,FALSE),IFERROR(VLOOKUP($B8,'複方精油 Essential Oil Blends'!$A:$D,4,FALSE),IFERROR(VLOOKUP($B8,'複方精油 Essential Oil Blends'!$F:$I,4,FALSE),IFERROR(VLOOKUP($B8,'精油套裝 Essential Oil Kits'!$A:$D,4,FALSE),IFERROR(VLOOKUP($B8,'精油套裝 Essential Oil Kits'!$F:$I,4,FALSE),IFERROR(VLOOKUP($B8,'健康產品 Wellness'!$A:$D,4,FALSE),IFERROR(VLOOKUP($B8,'健康產品 Wellness'!$F:$I,4,FALSE),IFERROR(VLOOKUP($B8,'個人護理系列 Spa'!$A:$D,4,FALSE),IFERROR(VLOOKUP($B8,'個人護理系列 Spa'!$F:$I,4,FALSE),IFERROR(VLOOKUP($B8,'護髮產品 Salon Essentials'!$A:$D,4,FALSE),IFERROR(VLOOKUP($B8,'護髮產品 Salon Essentials'!$F:$I,4,FALSE),IFERROR(VLOOKUP($B8,'家居生活產品及配件 Living & Accessories'!$A:$D,4,FALSE),IFERROR(VLOOKUP($B8,'家居生活產品及配件 Living & Accessories'!$F:$I,4,FALSE),\"\")))))))))))))))","v":""},{"$f":"IF(C8=\"\",\"\",C8*F8)","v":""},{"$f":"IF(C8=\"\",\"\",C8*G8)","v":""}]
[3,null,null,{"$f":"IF($B9=\"\",\"\",IFERROR(VLOOKUP($B9,'單方精油 Essential Oil Singles'!$A:$D,2,FALSE),IFERROR(VLOOKUP($B9,'單方精油 Essential Oil Singles'!$F:$H,2,FALSE),IFERROR(VLOOKUP($B9,'複方精油 Essential Oil Blends'!$A:$D,2,FALSE),IFERROR(VLOOKUP($B9,'複方精油 Essential Oil Blends'!$F:$H,2,FALSE),IFERROR(VLOOKUP($B9,'精油套裝 Essential Oil Kits'!$A:$D,2,FALSE),IFERROR(VLOOKUP($B9,'精油套裝 Essential Oil Kits'!$F:$H,2,FALSE),IFERROR(VLOOKUP($B9,'健康產品 Wellness'!$A:$D,2,FALSE),IFERROR(VLOOKUP($B9,'健康產品 Wellness'!$F:$H,2,FALSE),IFERROR(VLOOKUP($B9,'個人護理系列 Spa'!$A:$D,2,FALSE),IFERROR(VLOOKUP($B9,'個人護理系列 Spa'!$F:$H,2,FALSE),IFERROR(VLOOKUP($B9,'護髮產品 Salon Essentials'!$A:$D,2,FALSE),IFERROR(VLOOKUP($B9,'護髮產品 Salon Essentials'!$F:$H,2,FALSE),IFERROR(VLOOKUP($B9,'家居生活產品及配件 Living & Accessories'!$A:$D,2,FALSE),IFERROR(VLOOKUP($B9,'家居生活產品及配件 Living & Accessories'!$F:$H,2,FALSE),\"沒有此產品編號 / No Such Product SKU\")))))))))))))))","v":""},{"$f":"IF($B10=\"\",\"\",IFERROR(VLOOKUP($B10,'單方精油 Essential Oil Singles'!$A:$D,2,FALSE),IFERROR(VLOOKUP($B10,'單方精油 Essential Oil Singles'!$F:$H,2,FALSE),IFERROR(VLOOKUP($B10,'複方精油 Essential Oil Blends'!$A:$D,2,FALSE),IFERROR(VLOOKUP($B10,'複方精油 Essential Oil Blends'!$F:$H,2,FALSE),IFERROR(VLOOKUP($B10,'精油套裝 Essential Oil Kits'!$A:$D,2,FALSE),IFERROR(VLOOKUP($B10,'精油套裝 Essential Oil Kits'!$F:$H,2,FALSE),IFERROR(VLOOKUP($B10,'健康產品 Wellness'!$A:$D,2,FALSE),IFERROR(VLOOKUP($B10,'健康產品 Wellness'!$F:$H,2,FALSE),IFERROR(VLOOKUP($B10,'個人護理系列 Spa'!$A:$D,2,FALSE),IFERROR(VLOOKUP($B10,'個人護理系列 Spa'!$F:$H,2,FALSE),IFERROR(VLOOKUP($B10,'護髮產品 Salon Essentials'!$A:$D,2,FALSE),IFERROR(VLOOKUP($B10,'護髮產品 Salon Essentials'!$F:$H,2,FALSE),IFERROR(VLOOKUP($B10,'家居生活產品及配件 Living & Accessories'!$A:$D,2,FALSE),IFERROR(VLOOKUP($B10,'家居生活產品及配件 Living & Accessories'!$F:$H,2,FALSE),\"沒有此產品編號 / No Such Product SKU\")))))))))))))))","v":""},{"$f":"IF($B9=\"\",\"\",IFERROR(VLOOKUP($B9,'單方精油 Essential Oil Singles'!$A:$D,3,FALSE),IFERROR(VLOOKUP($B9,'單方精油 Essential Oil Singles'!$F:$H,3,FALSE),IFERROR(VLOOKUP($B9,'複方精油 Essential Oil Blends'!$A:$D,3,FALSE),IFERROR(VLOOKUP($B9,'複方精油 Essential Oil Blends'!$F:$H,3,FALSE),IFERROR(VLOOKUP($B9,'精油套裝 Essential Oil Kits'!$A:$D,3,FALSE),IFERROR(VLOOKUP($B9,'精油套裝 Essential Oil Kits'!$F:$H,3,FALSE),IFERROR(VLOOKUP($B9,'健康產品 Wellness'!$A:$D,3,FALSE),IFERROR(VLOOKUP($B9,'健康產品 Wellness'!$F:$H,3,FALSE),IFERROR(VLOOKUP($B9,'個人護理系列 Spa'!$A:$D,3,FALSE),IFERROR(VLOOKUP($B9,'個人護理系列 Spa'!$F:$H,3,FALSE),IFERROR(VLOOKUP($B9,'護髮產品 Salon Essentials'!$A:$D,3,FALSE),IFERROR(VLOOKUP($B9,'護髮產品 Salon Essentials'!$F:$H,3,FALSE),IFERROR(VLOOKUP($B9,'家居生活產品及配件 Living & Accessories'!$A:$D,3,FALSE),IFERROR(VLOOKUP($B9,'家居生活產品及配件 Living & Accessories'!$F:$H,3,FALSE),\"\")))))))))))))))","v":""},{"$f":"IF($B9=\"\",\"\",IFERROR(VLOOKUP($B9,'單方精油 Essential Oil Singles'!$A:$D,4,FALSE),IFERROR(VLOOKUP($B9,'單方精油 Essential Oil Singles'!$F:$I,4,FALSE),IFERROR(VLOOKUP($B9,'複方精油 Essential Oil Blends'!$A:$D,4,FALSE),IFERROR(VLOOKUP($B9,'複方精油 Essential Oil Blends'!$F:$I,4,FALSE),IFERROR(VLOOKUP($B9,'精油套裝 Essential Oil Kits'!$A:$D,4,FALSE),IFERROR(VLOOKUP($B9,'精油套裝 Essential Oil Kits'!$F:$I,4,FALSE),IFERROR(VLOOKUP($B9,'健康產品 Wellness'!$A:$D,4,FALSE),IFERROR(VLOOKUP($B9,'健康產品 Wellness'!$F:$I,4,FALSE),IFERROR(VLOOKUP($B9,'個人護理系列 Spa'!$A:$D,4,FALSE),IFERROR(VLOOKUP($B9,'個人護理系列 Spa'!$F:$I,4,FALSE),IFERROR(VLOOKUP($B9,'護髮產品 Salon Essentials'!$A:$D,4,FALSE),IFERROR(VLOOKUP($B9,'護髮產品 Salon Essentials'!$F:$I,4,FALSE),IFERROR(VLOOKUP($B9,'家居生活產品及配件 Living & Accessories'!$A:$D,4,FALSE),IFERROR(VLOOKUP($B9,'家居生活產品及配件 Living & Accessories'!$F:$I,4,FALSE),\"\")))))))))))))))","v":""},"",""]
[4,null,null,{"$f":"IF($B10=\"\",\"\",IFERROR(VLOOKUP($B10,'單方精油 Essential Oil Singles'!$A:$D,2,FALSE),IFERROR(VLOOKUP($B10,'單方精油 Essential Oil Singles'!$F:$H,2,FALSE),IFERROR(VLOOKUP($B10,'複方精油 Essential Oil Blends'!$A:$D,2,FALSE),IFERROR(VLOOKUP($B10,'複方精油 Essential Oil Blends'!$F:$H,2,FALSE),IFERROR(VLOOKUP($B10,'精油套裝 Essential Oil Kits'!$A:$D,2,FALSE),IFERROR(VLOOKUP($B10,'精油套裝 Essential Oil Kits'!$F:$H,2,FALSE),IFERROR(VLOOKUP($B10,'健康產品 Wellness'!$A:$D,2,FALSE),IFERROR(VLOOKUP($B10,'健康產品 Wellness'!$F:$H,2,FALSE),IFERROR(VLOOKUP($B10,'個人護理系列 Spa'!$A:$D,2,FALSE),IFERROR(VLOOKUP($B10,'個人護理系列 Spa'!$F:$H,2,FALSE),IFERROR(VLOOKUP($B10,'護髮產品 Salon Essentials'!$A:$D,2,FALSE),IFERROR(VLOOKUP($B10,'護髮產品 Salon Essentials'!$F:$H,2,FALSE),IFERROR(VLOOKUP($B10,'家居生活產品及配件 Living & Accessories'!$A:$D,2,FALSE),IFERROR(VLOOKUP($B10,'家居生活產品及配件 Living & Accessories'!$F:$H,2,FALSE),\"沒有此產品編號 / No Such Product SKU\")))))))))))))))","v":""},{"$f":"IF($B11=\"\",\"\",IFERROR(VLOOKUP($B11,'單方精油 Essential Oil Singles'!$A:$D,2,FALSE),IFERROR(VLOOKUP($B11,'單方精油 Essential Oil Singles'!$F:$H,2,FALSE),IFERROR(VLOOKUP($B11,'複方精油 Essential Oil Blends'!$A:$D,2,FALSE),IFERROR(VLOOKUP($B11,'複方精油 Essential Oil Blends'!$F:$H,2,FALSE),IFERROR(VLOOKUP($B11,'精油套裝 Essential Oil Kits'!$A:$D,2,FALSE),IFERROR(VLOOKUP($B11,'精油套裝 Essential Oil Kits'!$F:$H,2,FALSE),IFERROR(VLOOKUP($B11,'健康產品 Wellness'!$A:$D,2,FALSE),IFERROR(VLOOKUP($B11,'健康產品 Wellness'!$F:$H,2,FALSE),IFERROR(VLOOKUP($B11,'個人護理系列 Spa'!$A:$D,2,FALSE),IFERROR(VLOOKUP($B11,'個人護理系列 Spa'!$F:$H,2,FALSE),IFERROR(VLOOKUP($B11,'護髮產品 Salon Essentials'!$A:$D,2,FALSE),IFERROR(VLOOKUP($B11,'護髮產品 Salon Essentials'!$F:$H,2,FALSE),IFERROR(VLOOKUP($B11,'家居生活產品及配件 Living & Accessories'!$A:$D,2,FALSE),IFERROR(VLOOKUP($B11,'家居生活產品及配件 Living & Accessories'!$F:$H,2,FALSE),\"沒有此產品編號 / No Such Product SKU\")))))))))))))))","v":""},{"$f":"IF($B10=\"\",\"\",IFERROR(VLOOKUP($B10,'單方精油 Essential Oil Singles'!$A:$D,3,FALSE),IFERROR(VLOOKUP($B10,'單方精油 Essential Oil Singles'!$F:$H,3,FALSE),IFERROR(VLOOKUP($B10,'複方精油 Essential Oil Blends'!$A:$D,3,FALSE),IFERROR(VLOOKUP($B10,'複方精油 Essential Oil Blends'!$F:$H,3,FALSE),IFERROR(VLOOKUP($B10,'精油套裝 Essential Oil Kits'!$A:$D,3,FALSE),IFERROR(VLOOKUP($B10,'精油套裝 Essential Oil Kits'!$F:$H,3,FALSE),IFERROR(VLOOKUP($B10,'健康產品 Wellness'!$A:$D,3,FALSE),IFERROR(VLOOKUP($B10,'健康產品 Wellness'!$F:$H,3,FALSE),IFERROR(VLOOKUP($B10,'個人護理系列 Spa'!$A:$D,3,FALSE),IFERROR(VLOOKUP($B10,'個人護理系列 Spa'!$F:$H,3,FALSE),IFERROR(VLOOKUP($B10,'護髮產品 Salon Essentials'!$A:$D,3,FALSE),IFERROR(VLOOKUP($B10,'護髮產品 Salon Essentials'!$F:$H,3,FALSE),IFERROR(VLOOKUP($B10,'家居生活產品及配件 Living & Accessories'!$A:$D,3,FALSE),IFERROR(VLOOKUP($B10,'家居生活產品及配件 Living & Accessories'!$F:$H,3,FALSE),\"\")))))))))))))))","v":""},{"$f":"IF($B10=\"\",\"\",IFERROR(VLOOKUP($B10,'單方精油 Essential Oil Singles'!$A:$D,4,FALSE),IFERROR(VLOOKUP($B10,'單方精油 Essential Oil Singles'!$F:$I,4,FALSE),IFERROR(VLOOKUP($B10,'複方精油 Essential Oil Blends'!$A:$D,4,FALSE),IFERROR(VLOOKUP($B10,'複方精油 Essential Oil Blends'!$F:$I,4,FALSE),IFERROR(VLOOKUP($B10,'精油套裝 Essential Oil Kits'!$A:$D,4,FALSE),IFERROR(VLOOKUP($B10,'精油套裝 Essential Oil Kits'!$F:$I,4,FALSE),IFERROR(VLOOKUP($B10,'健康產品 Wellness'!$A:$D,4,FALSE),IFERROR(VLOOKUP($B10,'健康產品 Wellness'!$F:$I,4,FALSE),IFERROR(VLOOKUP($B10,'個人護理系列 Spa'!$A:$D,4,FALSE),IFERROR(VLOOKUP($B10,'個人護理系列 Spa'!$F:$I,4,FALSE),IFERROR(VLOOKUP($B10,'護髮產品 Salon Essentials'!$A:$D,4,FALSE),IFERROR(VLOOKUP($B10,'護髮產品 Salon Essentials'!$F:$I,4,FALSE),IFERROR(VLOOKUP($B10,'家居生活產品及配件 Living & Accessories'!$A:$D,4,FALSE),IFERROR(VLOOKUP($B10,'家居生活產品及配件 Living & Accessories'!$F:$I,4,FALSE),\"\")))))))))))))))","v":""},"",""]
[5,null,null,{"$f":"IF($B11=\"\",\"\",IFERROR(VLOOKUP($B11,'單方精油 Essential Oil Singles'!$A:$D,2,FALSE),IFERROR(VLOOKUP($B11,'單方精油 Essential Oil Singles'!$F:$H,2,FALSE),IFERROR(VLOOKUP($B11,'複方精油 Essential Oil Blends'!$A:$D,2,FALSE),IFERROR(VLOOKUP($B11,'複方精油 Essential Oil Blends'!$F:$H,2,FALSE),IFERROR(VLOOKUP($B11,'精油套裝 Essential Oil Kits'!$A:$D,2,FALSE),IFERROR(VLOOKUP($B11,'精油套裝 Essential Oil Kits'!$F:$H,2,FALSE),IFERROR(VLOOKUP($B11,'健康產品 Wellness'!$A:$D,2,FALSE),IFERROR(VLOOKUP($B11,'健康產品 Wellness'!$F:$H,2,FALSE),IFERROR(VLOOKUP($B11,'個人護理系列 Spa'!$A:$D,2,FALSE),IFERROR(VLOOKUP($B11,'個人護理系列 Spa'!$F:$H,2,FALSE),IFERROR(VLOOKUP($B11,'護髮產品 Salon Essentials'!$A:$D,2,FALSE),IFERROR(VLOOKUP($B11,'護髮產品 Salon Essentials'!$F:$H,2,FALSE),IFERROR(VLOOKUP($B11,'家居生活產品及配件 Living & Accessories'!$A:$D,2,FALSE),IFERROR(VLOOKUP($B11,'家居生活產品及配件 Living & Accessories'!$F:$H,2,FALSE),\"沒有此產品編號 / No Such Product SKU\")))))))))))))))","v":""},{"$f":"IF($B12=\"\",\"\",IFERROR(VLOOKUP($B12,'單方精油 Essential Oil Singles'!$A:$D,2,FALSE),IFERROR(VLOOKUP($B12,'單方精油 Essential Oil Singles'!$F:$H,2,FALSE),IFERROR(VLOOKUP($B12,'複方精油 Essential Oil Blends'!$A:$D,2,FALSE),IFERROR(VLOOKUP($B12,'複方精油 Essential Oil Blends'!$F:$H,2,FALSE),IFERROR(VLOOKUP($B12,'精油套裝 Essential Oil Kits'!$A:$D,2,FALSE),IFERROR(VLOOKUP($B12,'精油套裝 Essential Oil Kits'!$F:$H,2,FALSE),IFERROR(VLOOKUP($B12,'健康產品 Wellness'!$A:$D,2,FALSE),IFERROR(VLOOKUP($B12,'健康產品 Wellness'!$F:$H,2,FALSE),IFERROR(VLOOKUP($B12,'個人護理系列 Spa'!$A:$D,2,FALSE),IFERROR(VLOOKUP($B12,'個人護理系列 Spa'!$F:$H,2,FALSE),IFERROR(VLOOKUP($B12,'護髮產品 Salon Essentials'!$A:$D,2,FALSE),IFERROR(VLOOKUP($B12,'護髮產品 Salon Essentials'!$F:$H,2,FALSE),IFERROR(VLOOKUP($B12,'家居生活產品及配件 Living & Accessories'!$A:$D,2,FALSE),IFERROR(VLOOKUP($B12,'家居生活產品及配件 Living & Accessories'!$F:$H,2,FALSE),\"沒有此產品編號 / No Such Product SKU\")))))))))))))))","v":""},{"$f":"IF($B11=\"\",\"\",IFERROR(VLOOKUP($B11,'單方精油 Essential Oil Singles'!$A:$D,3,FALSE),IFERROR(VLOOKUP($B11,'單方精油 Essential Oil Singles'!$F:$H,3,FALSE),IFERROR(VLOOKUP($B11,'複方精油 Essential Oil Blends'!$A:$D,3,FALSE),IFERROR(VLOOKUP($B11,'複方精油 Essential Oil Blends'!$F:$H,3,FALSE),IFERROR(VLOOKUP($B11,'精油套裝 Essential Oil Kits'!$A:$D,3,FALSE),IFERROR(VLOOKUP($B11,'精油套裝 Essential Oil Kits'!$F:$H,3,FALSE),IFERROR(VLOOKUP($B11,'健康產品 Wellness'!$A:$D,3,FALSE),IFERROR(VLOOKUP($B11,'健康產品 Wellness'!$F:$H,3,FALSE),IFERROR(VLOOKUP($B11,'個人護理系列 Spa'!$A:$D,3,FALSE),IFERROR(VLOOKUP($B11,'個人護理系列 Spa'!$F:$H,3,FALSE),IFERROR(VLOOKUP($B11,'護髮產品 Salon Essentials'!$A:$D,3,FALSE),IFERROR(VLOOKUP($B11,'護髮產品 Salon Essentials'!$F:$H,3,FALSE),IFERROR(VLOOKUP($B11,'家居生活產品及配件 Living & Accessories'!$A:$D,3,FALSE),IFERROR(VLOOKUP($B11,'家居生活產品及配件 Living & Accessories'!$F:$H,3,FALSE),\"\")))))))))))))))","v":""},{"$f":"IF($B11=\"\",\"\",IFERROR(VLOOKUP($B11,'單方精油 Essential Oil Singles'!$A:$D,4,FALSE),IFERROR(VLOOKUP($B11,'單方精油 Essential Oil Singles'!$F:$I,4,FALSE),IFERROR(VLOOKUP($B11,'複方精油 Essential Oil Blends'!$A:$D,4,FALSE),IFERROR(VLOOKUP($B11,'複方精油 Essential Oil Blends'!$F:$I,4,FALSE),IFERROR(VLOOKUP($B11,'精油套裝 Essential Oil Kits'!$A:$D,4,FALSE),IFERROR(VLOOKUP($B11,'精油套裝 Essential Oil Kits'!$F:$I,4,FALSE),IFERROR(VLOOKUP($B11,'健康產品 Wellness'!$A:$D,4,FALSE),IFERROR(VLOOKUP($B11,'健康產品 Wellness'!$F:$I,4,FALSE),IFERROR(VLOOKUP($B11,'個人護理系列 Spa'!$A:$D,4,FALSE),IFERROR(VLOOKUP($B11,'個人護理系列 Spa'!$F:$I,4,FALSE),IFERROR(VLOOKUP($B11,'護髮產品 Salon Essentials'!$A:$D,4,FALSE),IFERROR(VLOOKUP($B11,'護髮產品 Salon Essentials'!$F:$I,4,FALSE),IFERROR(VLOOKUP($B11,'家居生活產品及配件 Living & Accessories'!$A:$D,4,FALSE),IFERROR(VLOOKUP($B11,'家居生活產品及配件 Living & Accessories'!$F:$I,4,FALSE),\"\")))))))))))))))","v":""},"",""]
[6,null,null,{"$f":"IF($B12=\"\",\"\",IFERROR(VLOOKUP($B12,'單方精油 Essential Oil Singles'!$A:$D,2,FALSE),IFERROR(VLOOKUP($B12,'單方精油 Essential Oil Singles'!$F:$H,2,FALSE),IFERROR(VLOOKUP($B12,'複方精油 Essential Oil Blends'!$A:$D,2,FALSE),IFERROR(VLOOKUP($B12,'複方精油 Essential Oil Blends'!$F:$H,2,FALSE),IFERROR(VLOOKUP($B12,'精油套裝 Essential Oil Kits'!$A:$D,2,FALSE),IFERROR(VLOOKUP($B12,'精油套裝 Essential Oil Kits'!$F:$H,2,FALSE),IFERROR(VLOOKUP($B12,'健康產品 Wellness'!$A:$D,2,FALSE),IFERROR(VLOOKUP($B12,'健康產品 Wellness'!$F:$H,2,FALSE),IFERROR(VLOOKUP($B12,'個人護理系列 Spa'!$A:$D,2,FALSE),IFERROR(VLOOKUP($B12,'個人護理系列 Spa'!$F:$H,2,FALSE),IFERROR(VLOOKUP($B12,'護髮產品 Salon Essentials'!$A:$D,2,FALSE),IFERROR(VLOOKUP($B12,'護髮產品 Salon Essentials'!$F:$H,2,FALSE),IFERROR(VLOOKUP($B12,'家居生活產品及配件 Living & Accessories'!$A:$D,2,FALSE),IFERROR(VLOOKUP($B12,'家居生活產品及配件 Living & Accessories'!$F:$H,2,FALSE),\"沒有此產品編號 / No Such Product SKU\")))))))))))))))","v":""},{"$f":"IF($B13=\"\",\"\",IFERROR(VLOOKUP($B13,'單方精油 Essential Oil Singles'!$A:$D,2,FALSE),IFERROR(VLOOKUP($B13,'單方精油 Essential Oil Singles'!$F:$H,2,FALSE),IFERROR(VLOOKUP($B13,'複方精油 Essential Oil Blends'!$A:$D,2,FALSE),IFERROR(VLOOKUP($B13,'複方精油 Essential Oil Blends'!$F:$H,2,FALSE),IFERROR(VLOOKUP($B13,'精油套裝 Essential Oil Kits'!$A:$D,2,FALSE),IFERROR(VLOOKUP($B13,'精油套裝 Essential Oil Kits'!$F:$H,2,FALSE),IFERROR(VLOOKUP($B13,'健康產品 Wellness'!$A:$D,2,FALSE),IFERROR(VLOOKUP($B13,'健康產品 Wellness'!$F:$H,2,FALSE),IFERROR(VLOOKUP($B13,'個人護理系列 Spa'!$A:$D,2,FALSE),IFERROR(VLOOKUP($B13,'個人護理系列 Spa'!$F:$H,2,FALSE),IFERROR(VLOOKUP($B13,'護髮產品 Salon Essentials'!$A:$D,2,FALSE),IFERROR(VLOOKUP($B13,'護髮產品 Salon Essentials'!$F:$H,2,FALSE),IFERROR(VLOOKUP($B13,'家居生活產品及配件 Living & Accessories'!$A:$D,2,FALSE),IFERROR(VLOOKUP($B13,'家居生活產品及配件 Living & Accessories'!$F:$H,2,FALSE),\"沒有此產品編號 / No Such Product SKU\")))))))))))))))","v":""},{"$f":"IF($B12=\"\",\"\",IFERROR(VLOOKUP($B12,'單方精油 Essential Oil Singles'!$A:$D,3,FALSE),IFERROR(VLOOKUP($B12,'單方精油 Essential Oil Singles'!$F:$H,3,FALSE),IFERROR(VLOOKUP($B12,'複方精油 Essential Oil Blends'!$A:$D,3,FALSE),IFERROR(VLOOKUP($B12,'複方精油 Essential Oil Blends'!$F:$H,3,FALSE),IFERROR(VLOOKUP($B12,'精油套裝 Essential Oil Kits'!$A:$D,3,FALSE),IFERROR(VLOOKUP($B12,'精油套裝 Essential Oil Kits'!$F:$H,3,FALSE),IFERROR(VLOOKUP($B12,'健康產品 Wellness'!$A:$D,3,FALSE),IFERROR(VLOOKUP($B12,'健康產品 Wellness'!$F:$H,3,FALSE),IFERROR(VLOOKUP($B12,'個人護理系列 Spa'!$A:$D,3,FALSE),IFERROR(VLOOKUP($B12,'個人護理系列 Spa'!$F:$H,3,FALSE),IFERROR(VLOOKUP($B12,'護髮產品 Salon Essentials'!$A:$D,3,FALSE),IFERROR(VLOOKUP($B12,'護髮產品 Salon Essentials'!$F:$H,3,FALSE),IFERROR(VLOOKUP($B12,'家居生活產品及配件 Living & Accessories'!$A:$D,3,FALSE),IFERROR(VLOOKUP($B12,'家居生活產品及配件 Living & Accessories'!$F:$H,3,FALSE),\"\")))))))))))))))","v":""},{"$f":"IF($B12=\"\",\"\",IFERROR(VLOOKUP($B12,'單方精油 Essential Oil Singles'!$A:$D,4,FALSE),IFERROR(VLOOKUP($B12,'單方精油 Essential Oil Singles'!$F:$I,4,FALSE),IFERROR(VLOOKUP($B12,'複方精油 Essential Oil Blends'!$A:$D,4,FALSE),IFERROR(VLOOKUP($B12,'複方精油 Essential Oil Blends'!$F:$I,4,FALSE),IFERROR(VLOOKUP($B12,'精油套裝 Essential Oil Kits'!$A:$D,4,FALSE),IFERROR(VLOOKUP($B12,'精油套裝 Essential Oil Kits'!$F:$I,4,FALSE),IFERROR(VLOOKUP($B12,'健康產品 Wellness'!$A:$D,4,FALSE),IFERROR(VLOOKUP($B12,'健康產品 Wellness'!$F:$I,4,FALSE),IFERROR(VLOOKUP($B12,'個人護理系列 Spa'!$A:$D,4,FALSE),IFERROR(VLOOKUP($B12,'個人護理系列 Spa'!$F:$I,4,FALSE),IFERROR(VLOOKUP($B12,'護髮產品 Salon Essentials'!$A:$D,4,FALSE),IFERROR(VLOOKUP($B12,'護髮產品 Salon Essentials'!$F:$I,4,FALSE),IFERROR(VLOOKUP($B12,'家居生活產品及配件 Living & Accessories'!$A:$D,4,FALSE),IFERROR(VLOOKUP($B12,'家居生活產品及配件 Living & Accessories'!$F:$I,4,FALSE),\"\")))))))))))))))","v":""},"",""]
[7,null,null,{"$f":"IF($B13=\"\",\"\",IFERROR(VLOOKUP($B13,'單方精油 Essential Oil Singles'!$A:$D,2,FALSE),IFERROR(VLOOKUP($B13,'單方精油 Essential Oil Singles'!$F:$H,2,FALSE),IFERROR(VLOOKUP($B13,'複方精油 Essential Oil Blends'!$A:$D,2,FALSE),IFERROR(VLOOKUP($B13,'複方精油 Essential Oil Blends'!$F:$H,2,FALSE),IFERROR(VLOOKUP($B13,'精油套裝 Essential Oil Kits'!$A:$D,2,FALSE),IFERROR(VLOOKUP($B13,'精油套裝 Essential Oil Kits'!$F:$H,2,FALSE),IFERROR(VLOOKUP($B13,'健康產品 Wellness'!$A:$D,2,FALSE),IFERROR(VLOOKUP($B13,'健康產品 Wellness'!$F:$H,2,FALSE),IFERROR(VLOOKUP($B13,'個人護理系列 Spa'!$A:$D,2,FALSE),IFERROR(VLOOKUP($B13,'個人護理系列 Spa'!$F:$H,2,FALSE),IFERROR(VLOOKUP($B13,'護髮產品 Salon Essentials'!$A:$D,2,FALSE),IFERROR(VLOOKUP($B13,'護髮產品 Salon Essentials'!$F:$H,2,FALSE),IFERROR(VLOOKUP($B13,'家居生活產品及配件 Living & Accessories'!$A:$D,2,FALSE),IFERROR(VLOOKUP($B13,'家居生活產品及配件 Living & Accessories'!$F:$H,2,FALSE),\"沒有此產品編號 / No Such Product SKU\")))))))))))))))","v":""},{"$f":"IF($B14=\"\",\"\",IFERROR(VLOOKUP($B14,'單方精油 Essential Oil Singles'!$A:$D,2,FALSE),IFERROR(VLOOKUP($B14,'單方精油 Essential Oil Singles'!$F:$H,2,FALSE),IFERROR(VLOOKUP($B14,'複方精油 Essential Oil Blends'!$A:$D,2,FALSE),IFERROR(VLOOKUP($B14,'複方精油 Essential Oil Blends'!$F:$H,2,FALSE),IFERROR(VLOOKUP($B14,'精油套裝 Essential Oil Kits'!$A:$D,2,FALSE),IFERROR(VLOOKUP($B14,'精油套裝 Essential Oil Kits'!$F:$H,2,FALSE),IFERROR(VLOOKUP($B14,'健康產品 Wellness'!$A:$D,2,FALSE),IFERROR(VLOOKUP($B14,'健康產品 Wellness'!$F:$H,2,FALSE),IFERROR(VLOOKUP($B14,'個人護理系列 Spa'!$A:$D,2,FALSE),IFERROR(VLOOKUP($B14,'個人護理系列 Spa'!$F:$H,2,FALSE),IFERROR(VLOOKUP($B14,'護髮產品 Salon Essentials'!$A:$D,2,FALSE),IFERROR(VLOOKUP($B14,'護髮產品 Salon Essentials'!$F:$H,2,FALSE),IFERROR(VLOOKUP($B14,'家居生活產品及配件 Living & Accessories'!$A:$D,2,FALSE),IFERROR(VLOOKUP($B14,'家居生活產品及配件 Living & Accessories'!$F:$H,2,FALSE),\"沒有此產品編號 / No Such Product SKU\")))))))))))))))","v":""},{"$f":"IF($B13=\"\",\"\",IFERROR(VLOOKUP($B13,'單方精油 Essential Oil Singles'!$A:$D,3,FALSE),IFERROR(VLOOKUP($B13,'單方精油 Essential Oil Singles'!$F:$H,3,FALSE),IFERROR(VLOOKUP($B13,'複方精油 Essential Oil Blends'!$A:$D,3,FALSE),IFERROR(VLOOKUP($B13,'複方精油 Essential Oil Blends'!$F:$H,3,FALSE),IFERROR(VLOOKUP($B13,'精油套裝 Essential Oil Kits'!$A:$D,3,FALSE),IFERROR(VLOOKUP($B13,'精油套裝 Essential Oil Kits'!$F:$H,3,FALSE),IFERROR(VLOOKUP($B13,'健康產品 Wellness'!$A:$D,3,FALSE),IFERROR(VLOOKUP($B13,'健康產品 Wellness'!$F:$H,3,FALSE),IFERROR(VLOOKUP($B13,'個人護理系列 Spa'!$A:$D,3,FALSE),IFERROR(VLOOKUP($B13,'個人護理系列 Spa'!$F:$H,3,FALSE),IFERROR(VLOOKUP($B13,'護髮產品 Salon Essentials'!$A:$D,3,FALSE),IFERROR(VLOOKUP($B13,'護髮產品 Salon Essentials'!$F:$H,3,FALSE),IFERROR(VLOOKUP($B13,'家居生活產品及配件 Living & Accessories'!$A:$D,3,FALSE),IFERROR(VLOOKUP($B13,'家居生活產品及配件 Living & Accessories'!$F:$H,3,FALSE),\"\")))))))))))))))","v":""},{"$f":"IF($B13=\"\",\"\",IFERROR(VLOOKUP($B13,'單方精油 Essential Oil Singles'!$A:$D,4,FALSE),IFERROR(VLOOKUP($B13,'單方精油 Essential Oil Singles'!$F:$I,4,FALSE),IFERROR(VLOOKUP($B13,'複方精油 Essential Oil Blends'!$A:$D,4,FALSE),IFERROR(VLOOKUP($B13,'複方精油 Essential Oil Blends'!$F:$I,4,FALSE),IFERROR(VLOOKUP($B13,'精油套裝 Essential Oil Kits'!$A:$D,4,FALSE),IFERROR(VLOOKUP($B13,'精油套裝 Essential Oil Kits'!$F:$I,4,FALSE),IFERROR(VLOOKUP($B13,'健康產品 Wellness'!$A:$D,4,FALSE),IFERROR(VLOOKUP($B13,'健康產品 Wellness'!$F:$I,4,FALSE),IFERROR(VLOOKUP($B13,'個人護理系列 Spa'!$A:$D,4,FALSE),IFERROR(VLOOKUP($B13,'個人護理系列 Spa'!$F:$I,4,FALSE),IFERROR(VLOOKUP($B13,'護髮產品 Salon Essentials'!$A:$D,4,FALSE),IFERROR(VLOOKUP($B13,'護髮產品 Salon Essentials'!$F:$I,4,FALSE),IFERROR(VLOOKUP($B13,'家居生活產品及配件 Living & Accessories'!$A:$D,4,FALSE),IFERROR(VLOOKUP($B13,'家居生活產品及配件 Living & Accessories'!$F:$I,4,FALSE),\"\")))))))))))))))","v":""},"",""]
[8,null,null,{"$f":"IF($B14=\"\",\"\",IFERROR(VLOOKUP($B14,'單方精油 Essential Oil Singles'!$A:$D,2,FALSE),IFERROR(VLOOKUP($B14,'單方精油 Essential Oil Singles'!$F:$H,2,FALSE),IFERROR(VLOOKUP($B14,'複方精油 Essential Oil Blends'!$A:$D,2,FALSE),IFERROR(VLOOKUP($B14,'複方精油 Essential Oil Blends'!$F:$H,2,FALSE),IFERROR(VLOOKUP($B14,'精油套裝 Essential Oil Kits'!$A:$D,2,FALSE),IFERROR(VLOOKUP($B14,'精油套裝 Essential Oil Kits'!$F:$H,2,FALSE),IFERROR(VLOOKUP($B14,'健康產品 Wellness'!$A:$D,2,FALSE),IFERROR(VLOOKUP($B14,'健康產品 Wellness'!$F:$H,2,FALSE),IFERROR(VLOOKUP($B14,'個人護理系列 Spa'!$A:$D,2,FALSE),IFERROR(VLOOKUP($B14,'個人護理系列 Spa'!$F:$H,2,FALSE),IFERROR(VLOOKUP($B14,'護髮產品 Salon Essentials'!$A:$D,2,FALSE),IFERROR(VLOOKUP($B14,'護髮產品 Salon Essentials'!$F:$H,2,FALSE),IFERROR(VLOOKUP($B14,'家居生活產品及配件 Living & Accessories'!$A:$D,2,FALSE),IFERROR(VLOOKUP($B14,'家居生活產品及配件 Living & Accessories'!$F:$H,2,FALSE),\"沒有此產品編號 / No Such Product SKU\")))))))))))))))","v":""},{"$f":"IF($B15=\"\",\"\",IFERROR(VLOOKUP($B15,'單方精油 Essential Oil Singles'!$A:$D,2,FALSE),IFERROR(VLOOKUP($B15,'單方精油 Essential Oil Singles'!$F:$H,2,FALSE),IFERROR(VLOOKUP($B15,'複方精油 Essential Oil Blends'!$A:$D,2,FALSE),IFERROR(VLOOKUP($B15,'複方精油 Essential Oil Blends'!$F:$H,2,FALSE),IFERROR(VLOOKUP($B15,'精油套裝 Essential Oil Kits'!$A:$D,2,FALSE),IFERROR(VLOOKUP($B15,'精油套裝 Essential Oil Kits'!$F:$H,2,FALSE),IFERROR(VLOOKUP($B15,'健康產品 Wellness'!$A:$D,2,FALSE),IFERROR(VLOOKUP($B15,'健康產品 Wellness'!$F:$H,2,FALSE),IFERROR(VLOOKUP($B15,'個人護理系列 Spa'!$A:$D,2,FALSE),IFERROR(VLOOKUP($B15,'個人護理系列 Spa'!$F:$H,2,FALSE),IFERROR(VLOOKUP($B15,'護髮產品 Salon Essentials'!$A:$D,2,FALSE),IFERROR(VLOOKUP($B15,'護髮產品 Salon Essentials'!$F:$H,2,FALSE),IFERROR(VLOOKUP($B15,'家居生活產品及配件 Living & Accessories'!$A:$D,2,FALSE),IFERROR(VLOOKUP($B15,'家居生活產品及配件 Living & Accessories'!$F:$H,2,FALSE),\"沒有此產品編號 / No Such Product SKU\")))))))))))))))","v":""},{"$f":"IF($B14=\"\",\"\",IFERROR(VLOOKUP($B14,'單方精油 Essential Oil Singles'!$A:$D,3,FALSE),IFERROR(VLOOKUP($B14,'單方精油 Essential Oil Singles'!$F:$H,3,FALSE),IFERROR(VLOOKUP($B14,'複方精油 Essential Oil Blends'!$A:$D,3,FALSE),IFERROR(VLOOKUP($B14,'複方精油 Essential Oil Blends'!$F:$H,3,FALSE),IFERROR(VLOOKUP($B14,'精油套裝 Essential Oil Kits'!$A:$D,3,FALSE),IFERROR(VLOOKUP($B14,'精油套裝 Essential Oil Kits'!$F:$H,3,FALSE),IFERROR(VLOOKUP($B14,'健康產品 Wellness'!$A:$D,3,FALSE),IFERROR(VLOOKUP($B14,'健康產品 Wellness'!$F:$H,3,FALSE),IFERROR(VLOOKUP($B14,'個人護理系列 Spa'!$A:$D,3,FALSE),IFERROR(VLOOKUP($B14,'個人護理系列 Spa'!$F:$H,3,FALSE),IFERROR(VLOOKUP($B14,'護髮產品 Salon Essentials'!$A:$D,3,FALSE),IFERROR(VLOOKUP($B14,'護髮產品 Salon Essentials'!$F:$H,3,FALSE),IFERROR(VLOOKUP($B14,'家居生活產品及配件 Living & Accessories'!$A:$D,3,FALSE),IFERROR(VLOOKUP($B14,'家居生活產品及配件 Living & Accessories'!$F:$H,3,FALSE),\"\")))))))))))))))","v":""},{"$f":"IF($B14=\"\",\"\",IFERROR(VLOOKUP($B14,'單方精油 Essential Oil Singles'!$A:$D,4,FALSE),IFERROR(VLOOKUP($B14,'單方精油 Essential Oil Singles'!$F:$I,4,FALSE),IFERROR(VLOOKUP($B14,'複方精油 Essential Oil Blends'!$A:$D,4,FALSE),IFERROR(VLOOKUP($B14,'複方精油 Essential Oil Blends'!$F:$I,4,FALSE),IFERROR(VLOOKUP($B14,'精油套裝 Essential Oil Kits'!$A:$D,4,FALSE),IFERROR(VLOOKUP($B14,'精油套裝 Essential Oil Kits'!$F:$I,4,FALSE),IFERROR(VLOOKUP($B14,'健康產品 Wellness'!$A:$D,4,FALSE),IFERROR(VLOOKUP($B14,'健康產品 Wellness'!$F:$I,4,FALSE),IFERROR(VLOOKUP($B14,'個人護理系列 Spa'!$A:$D,4,FALSE),IFERROR(VLOOKUP($B14,'個人護理系列 Spa'!$F:$I,4,FALSE),IFERROR(VLOOKUP($B14,'護髮產品 Salon Essentials'!$A:$D,4,FALSE),IFERROR(VLOOKUP($B14,'護髮產品 Salon Essentials'!$F:$I,4,FALSE),IFERROR(VLOOKUP($B14,'家居生活產品及配件 Living & Accessories'!$A:$D,4,FALSE),IFERROR(VLOOKUP($B14,'家居生活產品及配件 Living & Accessories'!$F:$I,4,FALSE),\"\")))))))))))))))","v":""},"",""]
[9,null,null,{"$f":"IF($B15=\"\",\"\",IFERROR(VLOOKUP($B15,'單方精油 Essential Oil Singles'!$A:$D,2,FALSE),IFERROR(VLOOKUP($B15,'單方精油 Essential Oil Singles'!$F:$H,2,FALSE),IFERROR(VLOOKUP($B15,'複方精油 Essential Oil Blends'!$A:$D,2,FALSE),IFERROR(VLOOKUP($B15,'複方精油 Essential Oil Blends'!$F:$H,2,FALSE),IFERROR(VLOOKUP($B15,'精油套裝 Essential Oil Kits'!$A:$D,2,FALSE),IFERROR(VLOOKUP($B15,'精油套裝 Essential Oil Kits'!$F:$H,2,FALSE),IFERROR(VLOOKUP($B15,'健康產品 Wellness'!$A:$D,2,FALSE),IFERROR(VLOOKUP($B15,'健康產品 Wellness'!$F:$H,2,FALSE),IFERROR(VLOOKUP($B15,'個人護理系列 Spa'!$A:$D,2,FALSE),IFERROR(VLOOKUP($B15,'個人護理系列 Spa'!$F:$H,2,FALSE),IFERROR(VLOOKUP($B15,'護髮產品 Salon Essentials'!$A:$D,2,FALSE),IFERROR(VLOOKUP($B15,'護髮產品 Salon Essentials'!$F:$H,2,FALSE),IFERROR(VLOOKUP($B15,'家居生活產品及配件 Living & Accessories'!$A:$D,2,FALSE),IFERROR(VLOOKUP($B15,'家居生活產品及配件 Living & Accessories'!$F:$H,2,FALSE),\"沒有此產品編號 / No Such Product SKU\")))))))))))))))","v":""},{"$f":"IF($B16=\"\",\"\",IFERROR(VLOOKUP($B16,'單方精油 Essential Oil Singles'!$A:$D,2,FALSE),IFERROR(VLOOKUP($B16,'單方精油 Essential Oil Singles'!$F:$H,2,FALSE),IFERROR(VLOOKUP($B16,'複方精油 Essential Oil Blends'!$A:$D,2,FALSE),IFERROR(VLOOKUP($B16,'複方精油 Essential Oil Blends'!$F:$H,2,FALSE),IFERROR(VLOOKUP($B16,'精油套裝 Essential Oil Kits'!$A:$D,2,FALSE),IFERROR(VLOOKUP($B16,'精油套裝 Essential Oil Kits'!$F:$H,2,FALSE),IFERROR(VLOOKUP($B16,'健康產品 Wellness'!$A:$D,2,FALSE),IFERROR(VLOOKUP($B16,'健康產品 Wellness'!$F:$H,2,FALSE),IFERROR(VLOOKUP($B16,'個人護理系列 Spa'!$A:$D,2,FALSE),IFERROR(VLOOKUP($B16,'個人護理系列 Spa'!$F:$H,2,FALSE),IFERROR(VLOOKUP($B16,'護髮產品 Salon Essentials'!$A:$D,2,FALSE),IFERROR(VLOOKUP($B16,'護髮產品 Salon Essentials'!$F:$H,2,FALSE),IFERROR(VLOOKUP($B16,'家居生活產品及配件 Living & Accessories'!$A:$D,2,FALSE),IFERROR(VLOOKUP($B16,'家居生活產品及配件 Living & Accessories'!$F:$H,2,FALSE),\"沒有此產品編號 / No Such Product SKU\")))))))))))))))","v":""},{"$f":"IF($B15=\"\",\"\",IFERROR(VLOOKUP($B15,'單方精油 Essential Oil Singles'!$A:$D,3,FALSE),IFERROR(VLOOKUP($B15,'單方精油 Essential Oil Singles'!$F:$H,3,FALSE),IFERROR(VLOOKUP($B15,'複方精油 Essential Oil Blends'!$A:$D,3,FALSE),IFERROR(VLOOKUP($B15,'複方精油 Essential Oil Blends'!$F:$H,3,FALSE),IFERROR(VLOOKUP($B15,'精油套裝 Essential Oil Kits'!$A:$D,3,FALSE),IFERROR(VLOOKUP($B15,'精油套裝 Essential Oil Kits'!$F:$H,3,FALSE),IFERROR(VLOOKUP($B15,'健康產品 Wellness'!$A:$D,3,FALSE),IFERROR(VLOOKUP($B15,'健康產品 Wellness'!$F:$H,3,FALSE),IFERROR(VLOOKUP($B15,'個人護理系列 Spa'!$A:$D,3,FALSE),IFERROR(VLOOKUP($B15,'個人護理系列 Spa'!$F:$H,3,FALSE),IFERROR(VLOOKUP($B15,'護髮產品 Salon Essentials'!$A:$D,3,FALSE),IFERROR(VLOOKUP($B15,'護髮產品 Salon Essentials'!$F:$H,3,FALSE),IFERROR(VLOOKUP($B15,'家居生活產品及配件 Living & Accessories'!$A:$D,3,FALSE),IFERROR(VLOOKUP($B15,'家居生活產品及配件 Living & Accessories'!$F:$H,3,FALSE),\"\")))))))))))))))","v":""},{"$f":"IF($B15=\"\",\"\",IFERROR(VLOOKUP($B15,'單方精油 Essential Oil Singles'!$A:$D,4,FALSE),IFERROR(VLOOKUP($B15,'單方精油 Essential Oil Singles'!$F:$I,4,FALSE),IFERROR(VLOOKUP($B15,'複方精油 Essential Oil Blends'!$A:$D,4,FALSE),IFERROR(VLOOKUP($B15,'複方精油 Essential Oil Blends'!$F:$I,4,FALSE),IFERROR(VLOOKUP($B15,'精油套裝 Essential Oil Kits'!$A:$D,4,FALSE),IFERROR(VLOOKUP($B15,'精油套裝 Essential Oil Kits'!$F:$I,4,FALSE),IFERROR(VLOOKUP($B15,'健康產品 Wellness'!$A:$D,4,FALSE),IFERROR(VLOOKUP($B15,'健康產品 Wellness'!$F:$I,4,FALSE),IFERROR(VLOOKUP($B15,'個人護理系列 Spa'!$A:$D,4,FALSE),IFERROR(VLOOKUP($B15,'個人護理系列 Spa'!$F:$I,4,FALSE),IFERROR(VLOOKUP($B15,'護髮產品 Salon Essentials'!$A:$D,4,FALSE),IFERROR(VLOOKUP($B15,'護髮產品 Salon Essentials'!$F:$I,4,FALSE),IFERROR(VLOOKUP($B15,'家居生活產品及配件 Living & Accessories'!$A:$D,4,FALSE),IFERROR(VLOOKUP($B15,'家居生活產品及配件 Living & Accessories'!$F:$I,4,FALSE),\"\")))))))))))))))","v":""},"",""]
[10,null,null,{"$f":"IF($B16=\"\",\"\",IFERROR(VLOOKUP($B16,'單方精油 Essential Oil Singles'!$A:$D,2,FALSE),IFERROR(VLOOKUP($B16,'單方精油 Essential Oil Singles'!$F:$H,2,FALSE),IFERROR(VLOOKUP($B16,'複方精油 Essential Oil Blends'!$A:$D,2,FALSE),IFERROR(VLOOKUP($B16,'複方精油 Essential Oil Blends'!$F:$H,2,FALSE),IFERROR(VLOOKUP($B16,'精油套裝 Essential Oil Kits'!$A:$D,2,FALSE),IFERROR(VLOOKUP($B16,'精油套裝 Essential Oil Kits'!$F:$H,2,FALSE),IFERROR(VLOOKUP($B16,'健康產品 Wellness'!$A:$D,2,FALSE),IFERROR(VLOOKUP($B16,'健康產品 Wellness'!$F:$H,2,FALSE),IFERROR(VLOOKUP($B16,'個人護理系列 Spa'!$A:$D,2,FALSE),IFERROR(VLOOKUP($B16,'個人護理系列 Spa'!$F:$H,2,FALSE),IFERROR(VLOOKUP($B16,'護髮產品 Salon Essentials'!$A:$D,2,FALSE),IFERROR(VLOOKUP($B16,'護髮產品 Salon Essentials'!$F:$H,2,FALSE),IFERROR(VLOOKUP($B16,'家居生活產品及配件 Living & Accessories'!$A:$D,2,FALSE),IFERROR(VLOOKUP($B16,'家居生活產品及配件 Living & Accessories'!$F:$H,2,FALSE),\"沒有此產品編號 / No Such Product SKU\")))))))))))))))","v":""},{"$f":"IF($B17=\"\",\"\",IFERROR(VLOOKUP($B17,'單方精油 Essential Oil Singles'!$A:$D,2,FALSE),IFERROR(VLOOKUP($B17,'單方精油 Essential Oil Singles'!$F:$H,2,FALSE),IFERROR(VLOOKUP($B17,'複方精油 Essential Oil Blends'!$A:$D,2,FALSE),IFERROR(VLOOKUP($B17,'複方精油 Essential Oil Blends'!$F:$H,2,FALSE),IFERROR(VLOOKUP($B17,'精油套裝 Essential Oil Kits'!$A:$D,2,FALSE),IFERROR(VLOOKUP($B17,'精油套裝 Essential Oil Kits'!$F:$H,2,FALSE),IFERROR(VLOOKUP($B17,'健康產品 Wellness'!$A:$D,2,FALSE),IFERROR(VLOOKUP($B17,'健康產品 Wellness'!$F:$H,2,FALSE),IFERROR(VLOOKUP($B17,'個人護理系列 Spa'!$A:$D,2,FALSE),IFERROR(VLOOKUP($B17,'個人護理系列 Spa'!$F:$H,2,FALSE),IFERROR(VLOOKUP($B17,'護髮產品 Salon Essentials'!$A:$D,2,FALSE),IFERROR(VLOOKUP($B17,'護髮產品 Salon Essentials'!$F:$H,2,FALSE),IFERROR(VLOOKUP($B17,'家居生活產品及配件 Living & Accessories'!$A:$D,2,FALSE),IFERROR(VLOOKUP($B17,'家居生活產品及配件 Living & Accessories'!$F:$H,2,FALSE),\"沒有此產品編號 / No Such Product SKU\")))))))))))))))","v":""},{"$f":"IF($B16=\"\",\"\",IFERROR(VLOOKUP($B16,'單方精油 Essential Oil Singles'!$A:$D,3,FALSE),IFERROR(VLOOKUP($B16,'單方精油 Essential Oil Singles'!$F:$H,3,FALSE),IFERROR(VLOOKUP($B16,'複方精油 Essential Oil Blends'!$A:$D,3,FALSE),IFERROR(VLOOKUP($B16,'複方精油 Essential Oil Blends'!$F:$H,3,FALSE),IFERROR(VLOOKUP($B16,'精油套裝 Essential Oil Kits'!$A:$D,3,FALSE),IFERROR(VLOOKUP($B16,'精油套裝 Essential Oil Kits'!$F:$H,3,FALSE),IFERROR(VLOOKUP($B16,'健康產品 Wellness'!$A:$D,3,FALSE),IFERROR(VLOOKUP($B16,'健康產品 Wellness'!$F:$H,3,FALSE),IFERROR(VLOOKUP($B16,'個人護理系列 Spa'!$A:$D,3,FALSE),IFERROR(VLOOKUP($B16,'個人護理系列 Spa'!$F:$H,3,FALSE),IFERROR(VLOOKUP($B16,'護髮產品 Salon Essentials'!$A:$D,3,FALSE),IFERROR(VLOOKUP($B16,'護髮產品 Salon Essentials'!$F:$H,3,FALSE),IFERROR(VLOOKUP($B16,'家居生活產品及配件 Living & Accessories'!$A:$D,3,FALSE),IFERROR(VLOOKUP($B16,'家居生活產品及配件 Living & Accessories'!$F:$H,3,FALSE),\"\")))))))))))))))","v":""},{"$f":"IF($B16=\"\",\"\",IFERROR(VLOOKUP($B16,'單方精油 Essential Oil Singles'!$A:$D,4,FALSE),IFERROR(VLOOKUP($B16,'單方精油 Essential Oil Singles'!$F:$I,4,FALSE),IFERROR(VLOOKUP($B16,'複方精油 Essential Oil Blends'!$A:$D,4,FALSE),IFERROR(VLOOKUP($B16,'複方精油 Essential Oil Blends'!$F:$I,4,FALSE),IFERROR(VLOOKUP($B16,'精油套裝 Essential Oil Kits'!$A:$D,4,FALSE),IFERROR(VLOOKUP($B16,'精油套裝 Essential Oil Kits'!$F:$I,4,FALSE),IFERROR(VLOOKUP($B16,'健康產品 Wellness'!$A:$D,4,FALSE),IFERROR(VLOOKUP($B16,'健康產品 Wellness'!$F:$I,4,FALSE),IFERROR(VLOOKUP($B16,'個人護理系列 Spa'!$A:$D,4,FALSE),IFERROR(VLOOKUP($B16,'個人護理系列 Spa'!$F:$I,4,FALSE),IFERROR(VLOOKUP($B16,'護髮產品 Salon Essentials'!$A:$D,4,FALSE),IFERROR(VLOOKUP($B16,'護髮產品 Salon Essentials'!$F:$I,4,FALSE),IFERROR(VLOOKUP($B16,'家居生活產品及配件 Living & Accessories'!$A:$D,4,FALSE),IFERROR(VLOOKUP($B16,'家居生活產品及配件 Living & Accessories'!$F:$I,4,FALSE),\"\")))))))))))))))","v":""},"",""]
[11,null,null,{"$f":"IF($B17=\"\",\"\",IFERROR(VLOOKUP($B17,'單方精油 Essential Oil Singles'!$A:$D,2,FALSE),IFERROR(VLOOKUP($B17,'單方精油 Essential Oil Singles'!$F:$H,2,FALSE),IFERROR(VLOOKUP($B17,'複方精油 Essential Oil Blends'!$A:$D,2,FALSE),IFERROR(VLOOKUP($B17,'複方精油 Essential Oil Blends'!$F:$H,2,FALSE),IFERROR(VLOOKUP($B17,'精油套裝 Essential Oil Kits'!$A:$D,2,FALSE),IFERROR(VLOOKUP($B17,'精油套裝 Essential Oil Kits'!$F:$H,2,FALSE),IFERROR(VLOOKUP($B17,'健康產品 Wellness'!$A:$D,2,FALSE),IFERROR(VLOOKUP($B17,'健康產品 Wellness'!$F:$H,2,FALSE),IFERROR(VLOOKUP($B17,'個人護理系列 Spa'!$A:$D,2,FALSE),IFERROR(VLOOKUP($B17,'個人護理系列 Spa'!$F:$H,2,FALSE),IFERROR(VLOOKUP($B17,'護髮產品 Salon Essentials'!$A:$D,2,FALSE),IFERROR(VLOOKUP($B17,'護髮產品 Salon Essentials'!$F:$H,2,FALSE),IFERROR(VLOOKUP($B17,'家居生活產品及配件 Living & Accessories'!$A:$D,2,FALSE),IFERROR(VLOOKUP($B17,'家居生活產品及配件 Living & Accessories'!$F:$H,2,FALSE),\"沒有此產品編號 / No Such Product SKU\")))))))))))))))","v":""},{"$f":"IF($B18=\"\",\"\",IFERROR(VLOOKUP($B18,'單方精油 Essential Oil Singles'!$A:$D,2,FALSE),IFERROR(VLOOKUP($B18,'單方精油 Essential Oil Singles'!$F:$H,2,FALSE),IFERROR(VLOOKUP($B18,'複方精油 Essential Oil Blends'!$A:$D,2,FALSE),IFERROR(VLOOKUP($B18,'複方精油 Essential Oil Blends'!$F:$H,2,FALSE),IFERROR(VLOOKUP($B18,'精油套裝 Essential Oil Kits'!$A:$D,2,FALSE),IFERROR(VLOOKUP($B18,'精油套裝 Essential Oil Kits'!$F:$H,2,FALSE),IFERROR(VLOOKUP($B18,'健康產品 Wellness'!$A:$D,2,FALSE),IFERROR(VLOOKUP($B18,'健康產品 Wellness'!$F:$H,2,FALSE),IFERROR(VLOOKUP($B18,'個人護理系列 Spa'!$A:$D,2,FALSE),IFERROR(VLOOKUP($B18,'個人護理系列 Spa'!$F:$H,2,FALSE),IFERROR(VLOOKUP($B18,'護髮產品 Salon Essentials'!$A:$D,2,FALSE),IFERROR(VLOOKUP($B18,'護髮產品 Salon Essentials'!$F:$H,2,FALSE),IFERROR(VLOOKUP($B18,'家居生活產品及配件 Living & Accessories'!$A:$D,2,FALSE),IFERROR(VLOOKUP($B18,'家居生活產品及配件 Living & Accessories'!$F:$H,2,FALSE),\"沒有此產品編號 / No Such Product SKU\")))))))))))))))","v":""},{"$f":"IF($B17=\"\",\"\",IFERROR(VLOOKUP($B17,'單方精油 Essential Oil Singles'!$A:$D,3,FALSE),IFERROR(VLOOKUP($B17,'單方精油 Essential Oil Singles'!$F:$H,3,FALSE),IFERROR(VLOOKUP($B17,'複方精油 Essential Oil Blends'!$A:$D,3,FALSE),IFERROR(VLOOKUP($B17,'複方精油 Essential Oil Blends'!$F:$H,3,FALSE),IFERROR(VLOOKUP($B17,'精油套裝 Essential Oil Kits'!$A:$D,3,FALSE),IFERROR(VLOOKUP($B17,'精油套裝 Essential Oil Kits'!$F:$H,3,FALSE),IFERROR(VLOOKUP($B17,'健康產品 Wellness'!$A:$D,3,FALSE),IFERROR(VLOOKUP($B17,'健康產品 Wellness'!$F:$H,3,FALSE),IFERROR(VLOOKUP($B17,'個人護理系列 Spa'!$A:$D,3,FALSE),IFERROR(VLOOKUP($B17,'個人護理系列 Spa'!$F:$H,3,FALSE),IFERROR(VLOOKUP($B17,'護髮產品 Salon Essentials'!$A:$D,3,FALSE),IFERROR(VLOOKUP($B17,'護髮產品 Salon Essentials'!$F:$H,3,FALSE),IFERROR(VLOOKUP($B17,'家居生活產品及配件 Living & Accessories'!$A:$D,3,FALSE),IFERROR(VLOOKUP($B17,'家居生活產品及配件 Living & Accessories'!$F:$H,3,FALSE),\"\")))))))))))))))","v":""},{"$f":"IF($B17=\"\",\"\",IFERROR(VLOOKUP($B17,'單方精油 Essential Oil Singles'!$A:$D,4,FALSE),IFERROR(VLOOKUP($B17,'單方精油 Essential Oil Singles'!$F:$I,4,FALSE),IFERROR(VLOOKUP($B17,'複方精油 Essential Oil Blends'!$A:$D,4,FALSE),IFERROR(VLOOKUP($B17,'複方精油 Essential Oil Blends'!$F:$I,4,FALSE),IFERROR(VLOOKUP($B17,'精油套裝 Essential Oil Kits'!$A:$D,4,FALSE),IFERROR(VLOOKUP($B17,'精油套裝 Essential Oil Kits'!$F:$I,4,FALSE),IFERROR(VLOOKUP($B17,'健康產品 Wellness'!$A:$D,4,FALSE),IFERROR(VLOOKUP($B17,'健康產品 Wellness'!$F:$I,4,FALSE),IFERROR(VLOOKUP($B17,'個人護理系列 Spa'!$A:$D,4,FALSE),IFERROR(VLOOKUP($B17,'個人護理系列 Spa'!$F:$I,4,FALSE),IFERROR(VLOOKUP($B17,'護髮產品 Salon Essentials'!$A:$D,4,FALSE),IFERROR(VLOOKUP($B17,'護髮產品 Salon Essentials'!$F:$I,4,FALSE),IFERROR(VLOOKUP($B17,'家居生活產品及配件 Living & Accessories'!$A:$D,4,FALSE),IFERROR(VLOOKUP($B17,'家居生活產品及配件 Living & Accessories'!$F:$I,4,FALSE),\"\")))))))))))))))","v":""},"",""]
[12,null,null,{"$f":"IF($B18=\"\",\"\",IFERROR(VLOOKUP($B18,'單方精油 Essential Oil Singles'!$A:$D,2,FALSE),IFERROR(VLOOKUP($B18,'單方精油 Essential Oil Singles'!$F:$H,2,FALSE),IFERROR(VLOOKUP($B18,'複方精油 Essential Oil Blends'!$A:$D,2,FALSE),IFERROR(VLOOKUP($B18,'複方精油 Essential Oil Blends'!$F:$H,2,FALSE),IFERROR(VLOOKUP($B18,'精油套裝 Essential Oil Kits'!$A:$D,2,FALSE),IFERROR(VLOOKUP($B18,'精油套裝 Essential Oil Kits'!$F:$H,2,FALSE),IFERROR(VLOOKUP($B18,'健康產品 Wellness'!$A:$D,2,FALSE),IFERROR(VLOOKUP($B18,'健康產品 Wellness'!$F:$H,2,FALSE),IFERROR(VLOOKUP($B18,'個人護理系列 Spa'!$A:$D,2,FALSE),IFERROR(VLOOKUP($B18,'個人護理系列 Spa'!$F:$H,2,FALSE),IFERROR(VLOOKUP($B18,'護髮產品 Salon Essentials'!$A:$D,2,FALSE),IFERROR(VLOOKUP($B18,'護髮產品 Salon Essentials'!$F:$H,2,FALSE),IFERROR(VLOOKUP($B18,'家居生活產品及配件 Living & Accessories'!$A:$D,2,FALSE),IFERROR(VLOOKUP($B18,'家居生活產品及配件 Living & Accessories'!$F:$H,2,FALSE),\"沒有此產品編號 / No Such Product SKU\")))))))))))))))","v":""},{"$f":"IF($B19=\"\",\"\",IFERROR(VLOOKUP($B19,'單方精油 Essential Oil Singles'!$A:$D,2,FALSE),IFERROR(VLOOKUP($B19,'單方精油 Essential Oil Singles'!$F:$H,2,FALSE),IFERROR(VLOOKUP($B19,'複方精油 Essential Oil Blends'!$A:$D,2,FALSE),IFERROR(VLOOKUP($B19,'複方精油 Essential Oil Blends'!$F:$H,2,FALSE),IFERROR(VLOOKUP($B19,'精油套裝 Essential Oil Kits'!$A:$D,2,FALSE),IFERROR(VLOOKUP($B19,'精油套裝 Essential Oil Kits'!$F:$H,2,FALSE),IFERROR(VLOOKUP($B19,'健康產品 Wellness'!$A:$D,2,FALSE),IFERROR(VLOOKUP($B19,'健康產品 Wellness'!$F:$H,2,FALSE),IFERROR(VLOOKUP($B19,'個人護理系列 Spa'!$A:$D,2,FALSE),IFERROR(VLOOKUP($B19,'個人護理系列 Spa'!$F:$H,2,FALSE),IFERROR(VLOOKUP($B19,'護髮產品 Salon Essentials'!$A:$D,2,FALSE),IFERROR(VLOOKUP($B19,'護髮產品 Salon Essentials'!$F:$H,2,FALSE),IFERROR(VLOOKUP($B19,'家居生活產品及配件 Living & Accessories'!$A:$D,2,FALSE),IFERROR(VLOOKUP($B19,'家居生活產品及配件 Living & Accessories'!$F:$H,2,FALSE),\"沒有此產品編號 / No Such Product SKU\")))))))))))))))","v":""},{"$f":"IF($B18=\"\",\"\",IFERROR(VLOOKUP($B18,'單方精油 Essential Oil Singles'!$A:$D,3,FALSE),IFERROR(VLOOKUP($B18,'單方精油 Essential Oil Singles'!$F:$H,3,FALSE),IFERROR(VLOOKUP($B18,'複方精油 Essential Oil Blends'!$A:$D,3,FALSE),IFERROR(VLOOKUP($B18,'複方精油 Essential Oil Blends'!$F:$H,3,FALSE),IFERROR(VLOOKUP($B18,'精油套裝 Essential Oil Kits'!$A:$D,3,FALSE),IFERROR(VLOOKUP($B18,'精油套裝 Essential Oil Kits'!$F:$H,3,FALSE),IFERROR(VLOOKUP($B18,'健康產品 Wellness'!$A:$D,3,FALSE),IFERROR(VLOOKUP($B18,'健康產品 Wellness'!$F:$H,3,FALSE),IFERROR(VLOOKUP($B18,'個人護理系列 Spa'!$A:$D,3,FALSE),IFERROR(VLOOKUP($B18,'個人護理系列 Spa'!$F:$H,3,FALSE),IFERROR(VLOOKUP($B18,'護髮產品 Salon Essentials'!$A:$D,3,FALSE),IFERROR(VLOOKUP($B18,'護髮產品 Salon Essentials'!$F:$H,3,FALSE),IFERROR(VLOOKUP($B18,'家居生活產品及配件 Living & Accessories'!$A:$D,3,FALSE),IFERROR(VLOOKUP($B18,'家居生活產品及配件 Living & Accessories'!$F:$H,3,FALSE),\"\")))))))))))))))","v":""},{"$f":"IF($B18=\"\",\"\",IFERROR(VLOOKUP($B18,'單方精油 Essential Oil Singles'!$A:$D,4,FALSE),IFERROR(VLOOKUP($B18,'單方精油 Essential Oil Singles'!$F:$I,4,FALSE),IFERROR(VLOOKUP($B18,'複方精油 Essential Oil Blends'!$A:$D,4,FALSE),IFERROR(VLOOKUP($B18,'複方精油 Essential Oil Blends'!$F:$I,4,FALSE),IFERROR(VLOOKUP($B18,'精油套裝 Essential Oil Kits'!$A:$D,4,FALSE),IFERROR(VLOOKUP($B18,'精油套裝 Essential Oil Kits'!$F:$I,4,FALSE),IFERROR(VLOOKUP($B18,'健康產品 Wellness'!$A:$D,4,FALSE),IFERROR(VLOOKUP($B18,'健康產品 Wellness'!$F:$I,4,FALSE),IFERROR(VLOOKUP($B18,'個人護理系列 Spa'!$A:$D,4,FALSE),IFERROR(VLOOKUP($B18,'個人護理系列 Spa'!$F:$I,4,FALSE),IFERROR(VLOOKUP($B18,'護髮產品 Salon Essentials'!$A:$D,4,FALSE),IFERROR(VLOOKUP($B18,'護髮產品 Salon Essentials'!$F:$I,4,FALSE),IFERROR(VLOOKUP($B18,'家居生活產品及配件 Living & Accessories'!$A:$D,4,FALSE),IFERROR(VLOOKUP($B18,'家居生活產品及配件 Living & Accessories'!$F:$I,4,FALSE),\"\")))))))))))))))","v":""},"",""]
[13,null,null,{"$f":"IF($B19=\"\",\"\",IFERROR(VLOOKUP($B19,'單方精油 Essential Oil Singles'!$A:$D,2,FALSE),IFERROR(VLOOKUP($B19,'單方精油 Essential Oil Singles'!$F:$H,2,FALSE),IFERROR(VLOOKUP($B19,'複方精油 Essential Oil Blends'!$A:$D,2,FALSE),IFERROR(VLOOKUP($B19,'複方精油 Essential Oil Blends'!$F:$H,2,FALSE),IFERROR(VLOOKUP($B19,'精油套裝 Essential Oil Kits'!$A:$D,2,FALSE),IFERROR(VLOOKUP($B19,'精油套裝 Essential Oil Kits'!$F:$H,2,FALSE),IFERROR(VLOOKUP($B19,'健康產品 Wellness'!$A:$D,2,FALSE),IFERROR(VLOOKUP($B19,'健康產品 Wellness'!$F:$H,2,FALSE),IFERROR(VLOOKUP($B19,'個人護理系列 Spa'!$A:$D,2,FALSE),IFERROR(VLOOKUP($B19,'個人護理系列 Spa'!$F:$H,2,FALSE),IFERROR(VLOOKUP($B19,'護髮產品 Salon Essentials'!$A:$D,2,FALSE),IFERROR(VLOOKUP($B19,'護髮產品 Salon Essentials'!$F:$H,2,FALSE),IFERROR(VLOOKUP($B19,'家居生活產品及配件 Living & Accessories'!$A:$D,2,FALSE),IFERROR(VLOOKUP($B19,'家居生活產品及配件 Living & Accessories'!$F:$H,2,FALSE),\"沒有此產品編號 / No Such Product SKU\")))))))))))))))","v":""},{"$f":"IF($B20=\"\",\"\",IFERROR(VLOOKUP($B20,'單方精油 Essential Oil Singles'!$A:$D,2,FALSE),IFERROR(VLOOKUP($B20,'單方精油 Essential Oil Singles'!$F:$H,2,FALSE),IFERROR(VLOOKUP($B20,'複方精油 Essential Oil Blends'!$A:$D,2,FALSE),IFERROR(VLOOKUP($B20,'複方精油 Essential Oil Blends'!$F:$H,2,FALSE),IFERROR(VLOOKUP($B20,'精油套裝 Essential Oil Kits'!$A:$D,2,FALSE),IFERROR(VLOOKUP($B20,'精油套裝 Essential Oil Kits'!$F:$H,2,FALSE),IFERROR(VLOOKUP($B20,'健康產品 Wellness'!$A:$D,2,FALSE),IFERROR(VLOOKUP($B20,'健康產品 Wellness'!$F:$H,2,FALSE),IFERROR(VLOOKUP($B20,'個人護理系列 Spa'!$A:$D,2,FALSE),IFERROR(VLOOKUP($B20,'個人護理系列 Spa'!$F:$H,2,FALSE),IFERROR(VLOOKUP($B20,'護髮產品 Salon Essentials'!$A:$D,2,FALSE),IFERROR(VLOOKUP($B20,'護髮產品 Salon Essentials'!$F:$H,2,FALSE),IFERROR(VLOOKUP($B20,'家居生活產品及配件 Living & Accessories'!$A:$D,2,FALSE),IFERROR(VLOOKUP($B20,'家居生活產品及配件 Living & Accessories'!$F:$H,2,FALSE),\"沒有此產品編號 / No Such Product SKU\")))))))))))))))","v":""},{"$f":"IF($B19=\"\",\"\",IFERROR(VLOOKUP($B19,'單方精油 Essential Oil Singles'!$A:$D,3,FALSE),IFERROR(VLOOKUP($B19,'單方精油 Essential Oil Singles'!$F:$H,3,FALSE),IFERROR(VLOOKUP($B19,'複方精油 Essential Oil Blends'!$A:$D,3,FALSE),IFERROR(VLOOKUP($B19,'複方精油 Essential Oil Blends'!$F:$H,3,FALSE),IFERROR(VLOOKUP($B19,'精油套裝 Essential Oil Kits'!$A:$D,3,FALSE),IFERROR(VLOOKUP($B19,'精油套裝 Essential Oil Kits'!$F:$H,3,FALSE),IFERROR(VLOOKUP($B19,'健康產品 Wellness'!$A:$D,3,FALSE),IFERROR(VLOOKUP($B19,'健康產品 Wellness'!$F:$H,3,FALSE),IFERROR(VLOOKUP($B19,'個人護理系列 Spa'!$A:$D,3,FALSE),IFERROR(VLOOKUP($B19,'個人護理系列 Spa'!$F:$H,3,FALSE),IFERROR(VLOOKUP($B19,'護髮產品 Salon Essentials'!$A:$D,3,FALSE),IFERROR(VLOOKUP($B19,'護髮產品 Salon Essentials'!$F:$H,3,FALSE),IFERROR(VLOOKUP($B19,'家居生活產品及配件 Living & Accessories'!$A:$D,3,FALSE),IFERROR(VLOOKUP($B19,'家居生活產品及配件 Living & Accessories'!$F:$H,3,FALSE),\"\")))))))))))))))","v":""},{"$f":"IF($B19=\"\",\"\",IFERROR(VLOOKUP($B19,'單方精油 Essential Oil Singles'!$A:$D,4,FALSE),IFERROR(VLOOKUP($B19,'單方精油 Essential Oil Singles'!$F:$I,4,FALSE),IFERROR(VLOOKUP($B19,'複方精油 Essential Oil Blends'!$A:$D,4,FALSE),IFERROR(VLOOKUP($B19,'複方精油 Essential Oil Blends'!$F:$I,4,FALSE),IFERROR(VLOOKUP($B19,'精油套裝 Essential Oil Kits'!$A:$D,4,FALSE),IFERROR(VLOOKUP($B19,'精油套裝 Essential Oil Kits'!$F:$I,4,FALSE),IFERROR(VLOOKUP($B19,'健康產品 Wellness'!$A:$D,4,FALSE),IFERROR(VLOOKUP($B19,'健康產品 Wellness'!$F:$I,4,FALSE),IFERROR(VLOOKUP($B19,'個人護理系列 Spa'!$A:$D,4,FALSE),IFERROR(VLOOKUP($B19,'個人護理系列 Spa'!$F:$I,4,FALSE),IFERROR(VLOOKUP($B19,'護髮產品 Salon Essentials'!$A:$D,4,FALSE),IFERROR(VLOOKUP($B19,'護髮產品 Salon Essentials'!$F:$I,4,FALSE),IFERROR(VLOOKUP($B19,'家居生活產品及配件 Living & Accessories'!$A:$D,4,FALSE),IFERROR(VLOOKUP($B19,'家居生活產品及配件 Living & Accessories'!$F:$I,4,FALSE),\"\")))))))))))))))","v":""},"",""]
[14,null,null,{"$f":"IF($B20=\"\",\"\",IFERROR(VLOOKUP($B20,'單方精油 Essential Oil Singles'!$A:$D,2,FALSE),IFERROR(VLOOKUP($B20,'單方精油 Essential Oil Singles'!$F:$H,2,FALSE),IFERROR(VLOOKUP($B20,'複方精油 Essential Oil Blends'!$A:$D,2,FALSE),IFERROR(VLOOKUP($B20,'複方精油 Essential Oil Blends'!$F:$H,2,FALSE),IFERROR(VLOOKUP($B20,'精油套裝 Essential Oil Kits'!$A:$D,2,FALSE),IFERROR(VLOOKUP($B20,'精油套裝 Essential Oil Kits'!$F:$H,2,FALSE),IFERROR(VLOOKUP($B20,'健康產品 Wellness'!$A:$D,2,FALSE),IFERROR(VLOOKUP($B20,'健康產品 Wellness'!$F:$H,2,FALSE),IFERROR(VLOOKUP($B20,'個人護理系列 Spa'!$A:$D,2,FALSE),IFERROR(VLOOKUP($B20,'個人護理系列 Spa'!$F:$H,2,FALSE),IFERROR(VLOOKUP($B20,'護髮產品 Salon Essentials'!$A:$D,2,FALSE),IFERROR(VLOOKUP($B20,'護髮產品 Salon Essentials'!$F:$H,2,FALSE),IFERROR(VLOOKUP($B20,'家居生活產品及配件 Living & Accessories'!$A:$D,2,FALSE),IFERROR(VLOOKUP($B20,'家居生活產品及配件 Living & Accessories'!$F:$H,2,FALSE),\"沒有此產品編號 / No Such Product SKU\")))))))))))))))","v":""},{"$f":"IF($B21=\"\",\"\",IFERROR(VLOOKUP($B21,'單方精油 Essential Oil Singles'!$A:$D,2,FALSE),IFERROR(VLOOKUP($B21,'單方精油 Essential Oil Singles'!$F:$H,2,FALSE),IFERROR(VLOOKUP($B21,'複方精油 Essential Oil Blends'!$A:$D,2,FALSE),IFERROR(VLOOKUP($B21,'複方精油 Essential Oil Blends'!$F:$H,2,FALSE),IFERROR(VLOOKUP($B21,'精油套裝 Essential Oil Kits'!$A:$D,2,FALSE),IFERROR(VLOOKUP($B21,'精油套裝 Essential Oil Kits'!$F:$H,2,FALSE),IFERROR(VLOOKUP($B21,'健康產品 Wellness'!$A:$D,2,FALSE),IFERROR(VLOOKUP($B21,'健康產品 Wellness'!$F:$H,2,FALSE),IFERROR(VLOOKUP($B21,'個人護理系列 Spa'!$A:$D,2,FALSE),IFERROR(VLOOKUP($B21,'個人護理系列 Spa'!$F:$H,2,FALSE),IFERROR(VLOOKUP($B21,'護髮產品 Salon Essentials'!$A:$D,2,FALSE),IFERROR(VLOOKUP($B21,'護髮產品 Salon Essentials'!$F:$H,2,FALSE),IFERROR(VLOOKUP($B21,'家居生活產品及配件 Living & Accessories'!$A:$D,2,FALSE),IFERROR(VLOOKUP($B21,'家居生活產品及配件 Living & Accessories'!$F:$H,2,FALSE),\"沒有此產品編號 / No Such Product SKU\")))))))))))))))","v":""},{"$f":"IF($B20=\"\",\"\",IFERROR(VLOOKUP($B20,'單方精油 Essential Oil Singles'!$A:$D,3,FALSE),IFERROR(VLOOKUP($B20,'單方精油 Essential Oil Singles'!$F:$H,3,FALSE),IFERROR(VLOOKUP($B20,'複方精油 Essential Oil Blends'!$A:$D,3,FALSE),IFERROR(VLOOKUP($B20,'複方精油 Essential Oil Blends'!$F:$H,3,FALSE),IFERROR(VLOOKUP($B20,'精油套裝 Essential Oil Kits'!$A:$D,3,FALSE),IFERROR(VLOOKUP($B20,'精油套裝 Essential Oil Kits'!$F:$H,3,FALSE),IFERROR(VLOOKUP($B20,'健康產品 Wellness'!$A:$D,3,FALSE),IFERROR(VLOOKUP($B20,'健康產品 Wellness'!$F:$H,3,FALSE),IFERROR(VLOOKUP($B20,'個人護理系列 Spa'!$A:$D,3,FALSE),IFERROR(VLOOKUP($B20,'個人護理系列 Spa'!$F:$H,3,FALSE),IFERROR(VLOOKUP($B20,'護髮產品 Salon Essentials'!$A:$D,3,FALSE),IFERROR(VLOOKUP($B20,'護髮產品 Salon Essentials'!$F:$H,3,FALSE),IFERROR(VLOOKUP($B20,'家居生活產品及配件 Living & Accessories'!$A:$D,3,FALSE),IFERROR(VLOOKUP($B20,'家居生活產品及配件 Living & Accessories'!$F:$H,3,FALSE),\"\")))))))))))))))","v":""},{"$f":"IF($B20=\"\",\"\",IFERROR(VLOOKUP($B20,'單方精油 Essential Oil Singles'!$A:$D,4,FALSE),IFERROR(VLOOKUP($B20,'單方精油 Essential Oil Singles'!$F:$I,4,FALSE),IFERROR(VLOOKUP($B20,'複方精油 Essential Oil Blends'!$A:$D,4,FALSE),IFERROR(VLOOKUP($B20,'複方精油 Essential Oil Blends'!$F:$I,4,FALSE),IFERROR(VLOOKUP($B20,'精油套裝 Essential Oil Kits'!$A:$D,4,FALSE),IFERROR(VLOOKUP($B20,'精油套裝 Essential Oil Kits'!$F:$I,4,FALSE),IFERROR(VLOOKUP($B20,'健康產品 Wellness'!$A:$D,4,FALSE),IFERROR(VLOOKUP($B20,'健康產品 Wellness'!$F:$I,4,FALSE),IFERROR(VLOOKUP($B20,'個人護理系列 Spa'!$A:$D,4,FALSE),IFERROR(VLOOKUP($B20,'個人護理系列 Spa'!$F:$I,4,FALSE),IFERROR(VLOOKUP($B20,'護髮產品 Salon Essentials'!$A:$D,4,FALSE),IFERROR(VLOOKUP($B20,'護髮產品 Salon Essentials'!$F:$I,4,FALSE),IFERROR(VLOOKUP($B20,'家居生活產品及配件 Living & Accessories'!$A:$D,4,FALSE),IFERROR(VLOOKUP($B20,'家居生活產品及配件 Living & Accessories'!$F:$I,4,FALSE),\"\")))))))))))))))","v":""},"",""]
[15,null,null,{"$f":"IF($B21=\"\",\"\",IFERROR(VLOOKUP($B21,'單方精油 Essential Oil Singles'!$A:$D,2,FALSE),IFERROR(VLOOKUP($B21,'單方精油 Essential Oil Singles'!$F:$H,2,FALSE),IFERROR(VLOOKUP($B21,'複方精油 Essential Oil Blends'!$A:$D,2,FALSE),IFERROR(VLOOKUP($B21,'複方精油 Essential Oil Blends'!$F:$H,2,FALSE),IFERROR(VLOOKUP($B21,'精油套裝 Essential Oil Kits'!$A:$D,2,FALSE),IFERROR(VLOOKUP($B21,'精油套裝 Essential Oil Kits'!$F:$H,2,FALSE),IFERROR(VLOOKUP($B21,'健康產品 Wellness'!$A:$D,2,FALSE),IFERROR(VLOOKUP($B21,'健康產品 Wellness'!$F:$H,2,FALSE),IFERROR(VLOOKUP($B21,'個人護理系列 Spa'!$A:$D,2,FALSE),IFERROR(VLOOKUP($B21,'個人護理系列 Spa'!$F:$H,2,FALSE),IFERROR(VLOOKUP($B21,'護髮產品 Salon Essentials'!$A:$D,2,FALSE),IFERROR(VLOOKUP($B21,'護髮產品 Salon Essentials'!$F:$H,2,FALSE),IFERROR(VLOOKUP($B21,'家居生活產品及配件 Living & Accessories'!$A:$D,2,FALSE),IFERROR(VLOOKUP($B21,'家居生活產品及配件 Living & Accessories'!$F:$H,2,FALSE),\"沒有此產品編號 / No Such Product SKU\")))))))))))))))","v":""},{"$f":"IF($B22=\"\",\"\",IFERROR(VLOOKUP($B22,'單方精油 Essential Oil Singles'!$A:$D,2,FALSE),IFERROR(VLOOKUP($B22,'單方精油 Essential Oil Singles'!$F:$H,2,FALSE),IFERROR(VLOOKUP($B22,'複方精油 Essential Oil Blends'!$A:$D,2,FALSE),IFERROR(VLOOKUP($B22,'複方精油 Essential Oil Blends'!$F:$H,2,FALSE),IFERROR(VLOOKUP($B22,'精油套裝 Essential Oil Kits'!$A:$D,2,FALSE),IFERROR(VLOOKUP($B22,'精油套裝 Essential Oil Kits'!$F:$H,2,FALSE),IFERROR(VLOOKUP($B22,'健康產品 Wellness'!$A:$D,2,FALSE),IFERROR(VLOOKUP($B22,'健康產品 Wellness'!$F:$H,2,FALSE),IFERROR(VLOOKUP($B22,'個人護理系列 Spa'!$A:$D,2,FALSE),IFERROR(VLOOKUP($B22,'個人護理系列 Spa'!$F:$H,2,FALSE),IFERROR(VLOOKUP($B22,'護髮產品 Salon Essentials'!$A:$D,2,FALSE),IFERROR(VLOOKUP($B22,'護髮產品 Salon Essentials'!$F:$H,2,FALSE),IFERROR(VLOOKUP($B22,'家居生活產品及配件 Living & Accessories'!$A:$D,2,FALSE),IFERROR(VLOOKUP($B22,'家居生活產品及配件 Living & Accessories'!$F:$H,2,FALSE),\"沒有此產品編號 / No Such Product SKU\")))))))))))))))","v":""},{"$f":"IF($B21=\"\",\"\",IFERROR(VLOOKUP($B21,'單方精油 Essential Oil Singles'!$A:$D,3,FALSE),IFERROR(VLOOKUP($B21,'單方精油 Essential Oil Singles'!$F:$H,3,FALSE),IFERROR(VLOOKUP($B21,'複方精油 Essential Oil Blends'!$A:$D,3,FALSE),IFERROR(VLOOKUP($B21,'複方精油 Essential Oil Blends'!$F:$H,3,FALSE),IFERROR(VLOOKUP($B21,'精油套裝 Essential Oil Kits'!$A:$D,3,FALSE),IFERROR(VLOOKUP($B21,'精油套裝 Essential Oil Kits'!$F:$H,3,FALSE),IFERROR(VLOOKUP($B21,'健康產品 Wellness'!$A:$D,3,FALSE),IFERROR(VLOOKUP($B21,'健康產品 Wellness'!$F:$H,3,FALSE),IFERROR(VLOOKUP($B21,'個人護理系列 Spa'!$A:$D,3,FALSE),IFERROR(VLOOKUP($B21,'個人護理系列 Spa'!$F:$H,3,FALSE),IFERROR(VLOOKUP($B21,'護髮產品 Salon Essentials'!$A:$D,3,FALSE),IFERROR(VLOOKUP($B21,'護髮產品 Salon Essentials'!$F:$H,3,FALSE),IFERROR(VLOOKUP($B21,'家居生活產品及配件 Living & Accessories'!$A:$D,3,FALSE),IFERROR(VLOOKUP($B21,'家居生活產品及配件 Living & Accessories'!$F:$H,3,FALSE),\"\")))))))))))))))","v":""},{"$f":"IF($B21=\"\",\"\",IFERROR(VLOOKUP($B21,'單方精油 Essential Oil Singles'!$A:$D,4,FALSE),IFERROR(VLOOKUP($B21,'單方精油 Essential Oil Singles'!$F:$I,4,FALSE),IFERROR(VLOOKUP($B21,'複方精油 Essential Oil Blends'!$A:$D,4,FALSE),IFERROR(VLOOKUP($B21,'複方精油 Essential Oil Blends'!$F:$I,4,FALSE),IFERROR(VLOOKUP($B21,'精油套裝 Essential Oil Kits'!$A:$D,4,FALSE),IFERROR(VLOOKUP($B21,'精油套裝 Essential Oil Kits'!$F:$I,4,FALSE),IFERROR(VLOOKUP($B21,'健康產品 Wellness'!$A:$D,4,FALSE),IFERROR(VLOOKUP($B21,'健康產品 Wellness'!$F:$I,4,FALSE),IFERROR(VLOOKUP($B21,'個人護理系列 Spa'!$A:$D,4,FALSE),IFERROR(VLOOKUP($B21,'個人護理系列 Spa'!$F:$I,4,FALSE),IFERROR(VLOOKUP($B21,'護髮產品 Salon Essentials'!$A:$D,4,FALSE),IFERROR(VLOOKUP($B21,'護髮產品 Salon Essentials'!$F:$I,4,FALSE),IFERROR(VLOOKUP($B21,'家居生活產品及配件 Living & Accessories'!$A:$D,4,FALSE),IFERROR(VLOOKUP($B21,'家居生活產品及配件 Living & Accessories'!$F:$I,4,FALSE),\"\")))))))))))))))","v":""},"",""]
[null,null,null,null,null,null,2,{"$f":"SUM(H7:H21)","v":0}]
["備註: 此計算器的內容只供參考之用，訂單價格及PV值最後均以公司資料為準。\nRemark: The contents of this calculator are for reference only, the order price and PV are subject to final confirmation.",null,null,null,null,null,null,{"$f":"IF((AND(K23=2,H22<2000)),30,IF(K23=1,0,IF((AND(K23=2,H22>3999)),0,50)))","v":0},null,null,1]
[null,null,null,null,null,null,null,"訂單總額\nTotal Amount","訂單PV值\nTotal Product Value",null,2]
[null,null,null,null,null,null,null,{"$f":"SUM(H22:H23)","v":0},{"$f":"SUM(I7:I21)","v":0}]
[]
[null,null,null,null,null,null,null,null,{"$f":"IF(DAY(H2)<=15,IF(K24=2,IF(I25>=125,\"此訂單可獲得每月一物贈品 / You can obtain 'Product of the Month' for this order\",\"\"),\"\"),\"\")","v":""}]

{"sheet":"單方精油 Essential Oil Singles","index":1,"n_rows":33,"n_cols":9,"rows_kept":33,"cut":false,"hidden":false,"merged":[[1,0,1,8]]}
["產品編號","產品名稱","批發價(港幣)","PV值",null,"產品編號","產品名稱","批發價(港幣)","PV值"]
["單方精油 Essential Oil Singles"]
[49360306,"5 ml 側柏 Arborvitae",215,28,null,30120406,"15 ml 檸檬 Lemon",115,14]
[30010406,"15 ml 羅勒 Basil",275,35,null,30130406,"15 ml 檸檬草 Lemongrass",100,13]
[30790406,"15 ml 佛手柑 Bergamot",345,44,null,30870406,"15 ml 青檸  Lime",125,16]
[41040406,"5 ml 黑胡椒 Black Pepper",215,28,null,60201177,"15 ml 山雞椒 Litsea",238,30.5]
[60205570,"5 ml 藍艾菊 Blue Tansy",830,100,null,60201180,"5 ml 麥盧卡 Manuka",495,63.5]
[49350406,"5 ml 豆蔻  Cardamom",255,33,null,30140406,"15 ml 馬鬱蘭  Marjoram",185,24]
[30020406,"15 ml 桂皮  Cassia",185,24,null,30150406,"15 ml 茶樹  Melaleuca",210,26]
[49300306,"15 ml 雪松 Cedarwood",125,16,null,30850406,"5 ml 香蜂草 Melissa",925,106]
[41850406,"15 ml 胡荽葉 Cilantro",255,33,null,30160406,"15 ml 沒藥  Myrrh",610,62]
[30030406,"5 ml 肉桂  Cinnamon",235,30,null,30180406,"15 ml 牛至  Oregano",220,28]
[30420406,"15 ml 快樂鼠尾草  Clary Sage",365,46,null,30890406,"15 ml 廣霍香  Patchouli",280,35]
[30040406,"15 ml 丁香  Clove",155,20,null,30190406,"15 ml 薄荷  Peppermint",220,28]
[60203493,"15 ml 古巴香脂 Copaiba",350,44,null,31570406,"薄荷晶球  Peppermint Beadlet",120,15]
[30780406,"15 ml 胡荽  Coriander",245,31,null,60201695,"15 ml 苦橙葉 Petitgrain",255,31]
[60210821,"15 ml 絲柏  Cypress",150,19,null,30800406,"5 ml 羅馬洋甘菊 Roman Chamomile",450,54]
[31590306,"5 ml 黃杉  Douglas Fir",190,24,null,30200406,"15 ml 迷迭香  Rosemary",160,20]
[30060306,"15 ml 尤加利樹  Eucalyptus Radiata",170,21,null,41860406,"5 ml 夏威夷檀香  Sandalwood (Hawaiian)",695,75]
[41290406,"15 ml 甜茴香  Fennel (Sweet)",145,19,null,60203558,"15 ml 西伯利亞冷杉 Siberian Fir",195,25]
[31640306,"分餾椰子油 Fractionated Coconut Oil",115,12,null,31610406,"15 ml 綠薄荷  Spearmint",280,35]
[30070406,"15 ml 乳香  Frankincense",685,79,null,60202835,"15 ml 甜橘 Tangerine",145,19]
[30090406,"15 ml 天竺葵  Geranium",375,48,null,30220406,"15 ml 百里香  Thyme ",290,37]
[60215637,"15 ml 生薑  Ginger",470,60,null,30430406,"15 ml 岩蘭草  Vetiver",540,62]
[30100406,"15 ml 葡萄柚  Grapefruit",175,22,null,30170406,"15 ml 野橘 Wild Orange",105,13]
[30410406,"5 ml 永久花  Helichrysum",735,80,null,31620306,"15 ml 冬青  Wintergreen",235,30]
[49290406,"5 ml 杜松漿果  Juniper Berry",185,24,null,30240406,"15 ml 伊蘭伊蘭  Ylang Ylang",360,46]
[30110406,"15 ml 薰衣草  Lavender ",235,30,null,60209177,"15ml 青橘精油 Green Mandarin",275,35]
[60209175,"15 ml 薑黃 Turmeric",275,35,null,60209176,"5ml 粉紅胡椒 Pink Pepper",230,29]
[60216413,"HK 5ml Tulsi Holy Basil",255,33,null,60200023,"5ml 玫瑰 Rose 5ml",2730,250]
[60207959,"西洋蓍草|石榴籽精油 Yarrow|POM",945,119,null,60210042,"5ml 黑雲杉 Black Spruce 5ml",175,22]
[null,null,null,null,null,60210314,"15ml 香矛 Citronella 15ml",185,23]
[null,null,null,null,null,60210673,"15ml Lemon Eucalyptus 檸檬尤加利 ",120,15]

{"sheet":"複方精油 Essential Oil Blends","index":2,"n_rows":28,"n_cols":9,"rows_kept":28,"cut":false,"hidden":false,"merged":[[1,0,1,8]]}
["產品編號","產品名稱","批發價(港幣)","PV值",null,"產品編號","產品名稱","批發價(港幣)","PV值"]
["複方精油 Proprietary dōTERRA® Essential Oil Blends"]
[60205597,"15 ml 賦活呼吸複方精油 Air Repair",275,35,null,60215525,"仕女複方精油滾珠裝 Whisper® Touch Blend",255,33]
[31200306,"15 ml 芳香調理複方 AromaTouch®",275,35,null,31460406,"15 ml 元氣複方精油 Zendocrine®",235,30]
[31010306,"15 ml 安定情緒複方精油 Balance®",210,26,null,31720306,"歡欣複方精油 Cheer®",245,31]
[60200221,"15 ml 順暢呼吸複方精油 Breathe®",215,28,null,31730306,"撫慰複方精油 Console®",360,46]
[31020306,"15 ml 柑橘清新複方精油 Citrus Bliss®",175,22,null,31750306,"寬容複方精油 Forgive®",195,25]
[60201428,"10 ml 溫柔呵護複方精油 Clary Calm®Roll On",240,31,null,31740306,"鼓舞複方精油 Motivate®",225,29]
[31050306,"5 ml 舒緩複方精油 Deep Blue®",320,41,null,31760306,"熱情複方精油 Passion®",410,53]
[31030406,"15 ml 樂活複方精油 DigestZen®",320,41,null,31710306,"靜謐複方精油 Peace®",295,38]
[31040306,"15 ml 活力甦醒複方精油 Elevation",470,54,null,31820306,"順暢呼吸複方精油滾珠裝 BREATHE™ Touch Blend",125,16]
[41840306,"10 ml 全神貫注複方精油 InTune ®",335,43,null,31780306,"樂活複方精油滾珠裝 DIGESTZEN® Touch Blend",195,25]
[31100406,"15 ml 保衛複方精油 On Guard®",330,43,null,60201317,"乳香精油滾珠裝 Frankincense Touch Blend",445,57]
[60213391,"保衛複方晶球 On Guard® Beadlet",155,20,null,60203490,"茉莉精油滾珠裝 Jasmine Touch Blend",410,53]
[60201425,"10 ml 舒壓複方精油  PastTense®",185,23,null,60201318,"薰衣草精油滾珠裝 Lavender Touch Blend",140,17]
[31060306,"15 ml 淨化清新複方精油 Purify",195,25,null,60201319,"茶樹精油滾珠裝 Melaleuca Touch Blend",120,15]
[60205352,"花漾年華複方精油 Salubelle®Roll On",680,87,null,60203491,"橙花精油滾珠裝 Neroli Touch Blend",460,59]
[60200640,"15 ml 神氣複方精油 Serenity®",310,40,null,60201320,"保衛複方精油滾珠裝 ON GUARD® Touch Blend",215,28]
[31370406,"15 ml 輕盈複方精油 Slim & Sassy®",255,33,null,60201321,"牛至精油滾珠裝 Oregano Touch Blend",140,18]
[31700306,"15 ml 不怕叮複方精油 - 新配方 TerraShield® New",100,13,null,60201322,"薄荷精油滾珠裝 Peppermint Touch Blend",140,18]
[31600306,"不怕叮複方精油噴霧 TerraShield® Spray",190,21,null,60203492,"玫瑰精油滾珠裝 Rose Touch Blend",685,82]
[60210672,"10 ml 悠活寶貝複方精油  Tamer™ Digestive Blend",145,19,null,60209304,"HK 10ml Magnolia Touch",275,35]
[60209568,"10 ml 平靜寶貝複方精油  Calmer™ Restful Blend",185,24,null,60212194,"15ml 完美修護複方精油 DDR Prime 15ml",320,41]
[60209569,"10 ml 勇氣寶貝複方精油  Brave™ Courage Blend",205,26,null,60210316,"15ml 樂適 Adaptiv Oil 15ml",375,48]
[60209610,"10 ml 強韌寶貝複方精油  Stronger™ Protective Blend",135,18,null,60212605,"10ml 樂適Adaptiv Touch 10ml",195,25]
[60209611,"10 ml 復元寶貝複方精油  Rescuer™ Soothing Blend",145,19,null,60210417,"HK 10ml Helichrysum Touch",535,63]
[60209612,"10 ml 安穩寶貝複方精油  Steady™ Grounding Blend ",145,19,null,60201489,"HK 10ml Hope Touch Blend",155,0]
[60209613,"10 ml 智慧寶貝複方精油  Thinker™ Focus Blend",155,20]

{"sheet":"精油套裝 Essential Oil Kits","index":3,"n_rows":10,"n_cols":9,"rows_kept":10,"cut":false,"hidden":false,"merged":[[1,0,1,8]]}
["產品編號","產品名稱","批發價(港幣)","PV值",null,"產品編號","產品名稱","批發價(港幣)","PV值"]
["精油套裝 Essential Oil Kits"]
[60205687,"精油入門套裝 Introductory Essential Oil Kit",195,19,null,60208894,"課程寶盒 (中文版) Class in a Box (CHI)",168,0]
[60205723,"家庭保健精油套裝 Family Essential Kit",1220,145,null,60208280,"緩神恬眠套裝 Calm & Harmony Kit",1050,125]
[60205712,"芳香調理套裝 AromaTouch® Technique Kit",1075,125,null,60208283,"酸痛舒緩套裝 Relief & Revive Kit",1050,125]
[60205693,"dōTERRA 芳香調理心情套裝 Emotional Aromatherapy Kit",1550,187,null,60208282,"精油肌膚保養基本套裝 \nEssential Skin Care Basic Kit",860,105]
[21190306,"dōTERRA 呵護套裝 Touch Kit",1390,169,null,60211711,"健康習慣套裝 Healthy Habits LRP Kit",1850,185]
[60209295,"瑜珈系列套裝 Yoga Kit 5ml",505,62]
[60216053,"西洋蓍草|石榴籽系列 Yarrow | POM  System",1680,170]
[60221723,"Adaptiv®  System 樂釋系統套裝",800,88]

{"sheet":"健康產品 Wellness","index":4,"n_rows":17,"n_cols":9,"rows_kept":17,"cut":false,"hidden":false,"merged":[[1,0,1,8]]}
["產品編號","產品名稱","批發價(港幣)","PV值",null,"產品編號","產品名稱","批發價(港幣)","PV值"]
["健康產品 Wellness"]
[60201707,"兒童咀嚼片 (西瓜味) A2Z Chewables (Watermelon favour)",200,19,null,35420406,"保衛複方軟膠囊 On Guard® SoftGel",255,28]
[60201790,"賦活植物精華 Alpha CRS®+",695,80,null,60201709,"兒童益生菌 PB Assist® Jr",240,25]
[34410406,"完美修護複方軟膠囊 DDR Prime™ Softgels",450,51,null,60207167,"益生菌防護綜合複方 PB Assist®+",385,44]
[34360406,"舒緩口服多酚Deep Blue Polyphenol Complex®",450,51,null,60201708,"舒眠恬靜複合膠囊 Serenity Sleep Softgel",210,21]
[35430406,"樂活複方膠囊 DigestZen® SoftGel",190,19,null,34270406,"輕盈複方® 軟膠囊 Slim & Sassy® Softgel",360,39]
[34310406,"青萃能量魚油 xEO MEGA®",485,62,null,49310406,"三合益™ 軟膠囊 TriEase™ Softgel",225,25]
[35040406,"胃腸道淨化配方 GX Assist®",240,26,null,60201706,"植物膠囊 Veggie Caps",40,0]
[20670406,"尊貴版終生活力套裝 HK Prime Pack",775,70,null,34280406,"元氣複方® 軟膠囊 Zendocrine® Softgel",215,22]
[60202255,"IQ魚油 IQ Mega®",335,37,null,60201873,"終生保健套裝 Life Long Vitality Pack",795,76]
[60202666,"全方位綜合維生素 Microplex MVP®",385,49,null,60204765,"兒童組合 (兒童咀嚼片 +  IQ魚油) Kids Kit (A2Z Chewables ™  +  IQ Mega®)",220,13]
[34350406,"能量耐力複方 Mito2Max®",365,39,null,60209254,"古巴香脂膠囊 Copaiba Softgel",310,37]
[null,null,null,null,null,60209880,"生薑檸檬喉糖 Ginger Drops",115,12]
[null,null,null,null,null,60210580,"薑黃膠囊 Tumeric Softgel",340,31]
[null,null,null,null,null,60212059,"西洋蓍草|石榴籽膠囊 Yarrow | POM Cellular Beauty Complex Capsules",450,46]
[null,null,null,null,null,60210317,"Adaptiv ® Calming Blend Capsules 樂釋膠囊",380,37]

{"sheet":"個人護理系列 Spa","index":5,"n_rows":23,"n_cols":9,"rows_kept":23,"cut":false,"hidden":false,"merged":[[1,0,1,8]]}
["產品編號","產品名稱","批發價(港幣)","PV值",null,"產品編號","產品名稱","批發價(港幣)","PV值"]
["個人護理系列 Spa"]
[37490306,"精油深層淨膚面膜 Detoxifying Mud Mask",140,15,null,60200480,"順暢呼吸複方香膏 Breathe™ Vapor Stick",95,6]
[60204174,"抗皺緊緻眼霜 Anti-Aging Eye Cream",410,47,null,60200310,"柑橘清新護手護膚乳液Citrus Bliss Hand Lotion",75,6]
[60204150,"青春保濕乳 Anti-Aging Moisturizer ",330,38,null,60110306,"Correct-X™ 軟膏 Correct -X™ Essential Ointment",115,10]
[60212723,"淨白煥膚凝膠 Brightening Gel ",310,35,null,38900306,"舒緩複方乳霜 Deep Blue® Rub",310,37]
[60204171,"潔柔洗面乳 Facial Cleanser",145,15,null,60210287,"保濕沐浴香皂 Moisturizing Bath Bar",75,6]
[60204156,"青春無齡保濕霜 Hydrating Cream ",330,38,null,60212345,"天然體香劑 Natural Deodorant with Balance",95,6]
[60204151,"活力磨砂膏 Invigorating Scrub ",170,18,null,37460306,"清新沐浴乳 Refreshing Body Wash",125,13]
[60204180,"細緻爽膚水 Pore Reducing Toner",190,21,null,36170001,"玫瑰護手護膚乳液 Rose Healing Hand Lotion",195,0]
[60204157,"緊膚精華露 Tightening Serum ",430,49,null,60210285,"舒眠恬靜沐浴香皂 Serenity Bath Bar",75,6]
[60207589,"精油肌膚保養套裝Essential Skin Care Kit",2000,250,null,60200305,"手部身體潤膚乳SPA Hand & Body Lotion",150,16]
[60201430,"清肌調理複方精油 (滾珠式) HD Clear (Roll On)",205,26,null,36120306,"手部身體潤膚乳3瓶裝 - 附情緒管理套裝 SPA Hand & Body Lotion 3-pack + Essential Oil Mood Management Kit",1120,110]
[49410306,"清肌乳液 HD Clear Facial Lotion",310,33]
[49420306,"清肌潔顏慕絲 HD Clear Foaming Face Wash",195,22]
[42700306,"臉部保養系列 HD Clear Facial Kit",450,50]
[37380306,"潔面凝膠 VERÁGE™ Cleanser",215,24]
[37410306,"保濕乳 VERÁGE™ Moisturizer",255,27]
[37400306,"花樣年華保濕精華 \nVERÁGE™  Salubelle Hydrating Serum",565,61]
[60215650,"爽膚水 VERÁGE™ Toner",195,21]
[42690306,"精油肌膚保養系列 VERÁGE™ Skin Care Collection",825,88]
[60207913,"精油保濕噴霧 Hydrating Body Mist",245,31]
[60211395,"西洋蓍草 | 石榴籽身體煥膚精華 Yarrow | POM Body Renewal Serum",635,75]

{"sheet":"護髮產品 Salon Essentials","index":6,"n_rows":9,"n_cols":9,"rows_kept":9,"cut":false,"hidden":false,"merged":[[1,0,1,8]]}
["產品編號","產品名稱","批發價(港幣)","PV值",null,"產品編號","產品名稱","批發價(港幣)","PV值"]
["護髮產品 Salon Essentials"]
[36270306,"晶亮造型護髮素 Healthy Hold Glaze",175,19,null,36240306,"精油亮采護色精華洗髮乳兩套\nProtecting Shampoo 2-Pack",240,24]
[36220306,"精油亮采護色精華洗髮乳 Protecting Shampoo",195,22,null,36250306,"精油柔順調理護髮素兩套裝 \nSmoothing Conditioner 2-Pack",275,29]
[60202187,"精油亮采護色精華洗髮乳家庭裝 Protecting Shampoo Family size ",440,44,null,36260306,"洗髮乳和護髮素套裝\nShampoo & Conditioner ",275,29]
[36280306,"精油套裝 Hair Care System",755,87]
[36230306,"精油柔順調理護髮素 Smoothing Conditioner",235,27]
[60202189,"精油柔順調理護髮素家庭裝 Smoothing Conditioner Family size ",490,50]
[60200376,"頭髮頭皮健康滋養液 Root to Tip Serum",320,38]

{"sheet":"家居生活產品及配件 Living & Accessories","index":7,"n_rows":36,"n_cols":9,"rows_kept":36,"cut":false,"hidden":false,"merged":[[1,0,1,8]]}
["產品編號","產品名稱","批發價(港幣)","PV值",null,"產品編號","產品名稱","批發價(港幣)","PV值"]
["家居生活產品及配件 Living & Accessories"]
[34050406,"保衛複方喉糖 On Guard® Protecting Throat Drops",115,12,null,60206786,"2018 產品目錄 (中文) 10 本 2018 Product Guide (CHI) 10pk ",225,0]
[38010306,"保衛複方潔手露 On Guard® Foaming Hand Wash",170,18,null,60206787,"2018 產品目錄 (英文) 10 本 2018 Product Guide (ENG) 10pk",225,0]
[38030000,"泡沫式填充瓶(空瓶) \nUNI Hand Wash Dispenser Large Bottle",20,0,null,60206062,"2018 產品目錄 (中文) 2018 Product Guide (CHI)",25,0]
[38140306,"保衛複方濃縮清潔液 \nOn Guard® Cleaner Concentrate",140,12,null,60206060,"2018 產品目錄 (英文) 2018 Product Guide (ENG)",25,0]
[39020306,"保衛複方洗衣精On Guard® Laundry Detergent",270,25,null,"p008901","精油小水滴 3pk Scent Your Own Fresh Pack ",49,0]
[60205978,"保衛複方淨化噴霧 On Guard® Sanitizing Mist",65,5,null,32090000,"精油分享瓶 Amber 5/8 Dram Vial",45,0]
[38910306,"保衛複方淨白牙膏 \nOn Guard® Natural Whitening Toothpaste",85,6,null,60201260,"感恩．貼心小禮盒(大) Blessing gift box (Big)",5,0]
[38070306,"保衛複方潔手露 (附2個填充瓶) \nOn Guard® Foaming Wash (2 dispensers)",210,18,null,47030306,"產品小貼紙(中文)  Cap Stickers(CHI)",20,0]
[60209257,"保衛漱口水 On Guard® Mouthwash",145,12,null,33300306,"浮雲噴霧器 Cloud Diffuser",875,0]
[null,null,null,null,null,45590306,"dōTERRA 特別版八達通 dōTERRA Limited Edition Octopus Card",150,0]
[null,null,null,null,null,48480306,"家中必備精油 Family Essential Uses Booklet",100,0]
[null,null,null,null,null,"p009001","節日小禮盒 Holiday Oil Tin",45,0]
[null,null,null,null,null,50110006,"鎖匙圈(黑色) Key Chain (Black)",65,0]
[null,null,null,null,null,50750000,"鎖匙圈(紫色) Key Chain (Purple)",65,0]
[null,null,null,null,null,60209255,"花瓣型芳香噴霧2.0 Petal Diffuser 2.0",460,0]
[null,null,null,null,null,48720306,"薄荷、檸檬、薰衣草101妙招 \nSingle Intro Kit 101 Booklet",5,0]
[null,null,null,null,null,48730306,"薄荷、檸檬、薰衣草101妙招 (10本) \nSingle Intro Kit 101 Booklet 10pk",40,0]
[null,null,null,null,null,60208528,"絨布禮物袋 12 x 12.5cm / Velvet Gift Bag (12 x 12.5 cm)",10,0]
[null,null,null,null,null,60208529,"絨布禮物袋 12 x 16cm / Velvet Gift Bag (12 x 16 cm)",10,0]
[null,null,null,null,null,60208961,"啟動(中文版) - 1 本 / Launch Guide (TC) - Single",8,0]
[null,null,null,null,null,60208942,"創業(中文版) - 1 本 / Build Guide (TC) - Single",8,0]
[null,null,null,null,null,60208908,"分享(中文版) - 1 本 / Share Guide (TC) - Single",8,0]
[null,null,null,null,null,60208948,"生活(中文版) - 1 本 / Live Guide (TC) - Single",8,0]
[null,null,null,null,null,60208907,"天然保健方案(中文版) - 1 本 / Natural Solution 2018 (TC) - Single",8,0]
[null,null,null,null,null,60208940,"健康好生活(中文版) - 1 本 / Healthy Can Be Simple 2018 (TC) - Single",8,0]
[null,null,null,null,null,60208962,"啟動(中文版) - 10 本 / Launch Guide (TC) - 10 ea",60,0]
[null,null,null,null,null,60208906,"創業(中文版) - 10 本 / Build Guide (TC) - 10 ea",60,0]
[null,null,null,null,null,60208963,"分享(中文版) - 10 本 / Share Guide (TC) - 10 ea",60,0]
[null,null,null,null,null,60208941,"生活(中文版) - 10 本 / Live Guide (TC) - 10 ea",60,0]
[null,null,null,null,null,60208943,"天然保健方案(中文版) - 10 本 / Natural Solutions (TC) - 10 ea",60,0]
[null,null,null,null,null,60208981,"健康好生活(中文版) - 10 本 / Health Can Be Simple (TC) - 10 ea",60,0]
[null,null,null,null,null,60221527,"Bubble Diffuser 泡泡迷你體感芳香噴霧器 ",215,0]
[null,null,null,null,null,60215742,"Pebble Diffuser 鵝卵石紋超聲波芳香噴霧器",245,0]
[null,null,null,null,null,60220010,"Pilot® Max Diffuser 派樂之家芳香噴霧器 ",440,0]